{"text_format":"1","workbook":"xlsx","n_sheets":19,"sheets":["목차","1","2-1","2-2","3","4","5","6","7","8","9","10","A"," B","C","D","E","F","Sheet1"],"not_rendered":{"charts":0,"images":0,"macros":1,"external_links":1,"defined_names":20,"comments":5,"pivot_tables":0},"unopened":[],"bounds":{"document_bytes":16777216,"sheet_cells":100000,"rows_first":2000,"rows_last":500,"rows_between":2000,"halvings":0,"cell_chars":16384,"cell_head_chars":4096},"cells_cut":0,"cells_raw":0,"read":"whole","date_system":"1900"}

{"sheet":"목차","index":0,"n_rows":83,"n_cols":18,"rows_kept":83,"cut":false,"hidden":false,"merged":[[67,16,67,18],[54,12,54,15],[54,16,54,18],[53,10,54,11],[66,12,66,15],[66,16,66,18],[67,12,67,15],[34,10,34,11],[34,12,34,15],[34,16,34,18],[21,17,21,18],[34,2,34,5],[54,2,54,5],[55,2,55,5],[40,1,41,1],[55,0,55,1],[54,0,54,1],[53,0,53,1],[34,0,34,1],[52,0,52,1],[39,2,39,5],[37,0,41,0],[40,2,40,5],[41,2,41,5],[38,2,38,5],[37,2,37,5],[36,2,36,5],[35,2,35,5],[52,2,52,5],[79,0,80,1],[79,2,79,5],[80,2,80,5],[39,12,39,15],[36,12,36,15],[35,12,35,15],[37,12,37,15],[35,0,36,1],[79,10,79,11],[79,12,79,15],[67,0,67,1],[66,0,66,1],[53,2,53,5],[52,12,52,15],[78,0,78,1],[78,2,78,5],[82,10,82,11],[82,12,82,15],[82,16,82,18],[80,10,81,11],[81,16,81,18],[81,12,81,15],[53,12,53,15],[53,16,53,18],[37,16,37,18],[38,12,38,15],[38,16,38,18],[35,10,39,11],[39,16,39,18],[36,16,36,18],[35,16,35,18],[80,12,80,15],[80,16,80,18],[68,12,68,15],[68,16,68,18],[67,10,68,11],[66,10,66,11],[79,16,79,18],[52,16,52,18],[52,10,52,11],[66,2,66,5],[67,2,67,5],[0,0,3,18],[5,0,5,6],[14,1,14,5],[7,1,7,5],[12,1,12,5],[6,1,6,5],[9,1,9,5],[13,1,13,5],[15,17,15,18],[15,13,15,16],[15,8,15,12],[15,1,15,5],[10,1,10,5],[11,1,11,5],[4,16,4,18],[18,0,23,0],[7,0,17,0],[8,1,8,5],[23,1,23,5],[19,17,19,18],[18,17,18,18],[17,17,17,18],[22,1,22,5],[21,1,21,5],[20,1,20,5],[19,1,19,5],[18,1,18,5],[16,1,16,5],[16,8,16,9],[17,1,17,5],[16,17,16,18],[20,17,20,18],[16,13,16,16],[16,10,16,12]]}
["서울대학교 산학협력단 표준 연구비 청구서식"]
[]
[]
[]
[null,null,null,null,null,null,null,null,null,null,null,null,null,null,null,null,"(2023.3. 서울대학교 산학협력단)"]
[" - 목  차 -"]
["구분","서식명",null,null,null,null,"Sheet No.",null,"인건비 · 학생인건비"]
["표준\n서식","고용계약서 / 과제참여계약서",null,null,null,null,"1",null,"■ 청구 절차"]
[null,"구매의뢰서",null,null,null,null,"2-1"]
[null,"수의계약사유서",null,null,null,null,"2-2"]
[null,"전문가활용비 사용내역서",null,null,null,null,"3"]
[null,"행사개최내역서",null,null,null,null,"4"]
[null,"[전자동의] 보안서약서 및 개인정보활용동의서",null,null,null,null,"5"]
[null,"[전자동의] 학생연구자 연구참여확약서/대학원생 연구보조업무 수행 동의서",null,null,null,null,"6"]
[null,"[SRnD] 외부참여연구자 소속기관장 확인서",null,null,null,null,"7",null,"■ 등록 및 변경 시 제출서류"]
[null,"[SRnD] 국내·외 출장신청(명령)서 / 국내·외 출장결과보고서",null,null,null,null,"8",null,"구분",null,null,null,null,"제출서류",null,null,null,"서식"]
[null,"[SRnD] 연구수당 기여도평가서 및 지급신청서",null,null,null,null,"9",null,"공통",null,null,null,null,"[전자동의] 보안서약서 및 개인정보활용동의서",null,null,null,"서식 바로가기"]
[null,"[SRnD] 보안수당 지급 신청서",null,null,null,null,"10",null,"소속이 없는 경우",null,"1개월 이상 과제 참여 시",null,null,"고용계약서",null,null,null,"서식 바로가기"]
["참고용","주말·휴일 회의 사전 품의서 / 참석자 서명부",null,null,null,null,"A",null,null,null,"프리랜서 또는 개인사업자",null,null,"과제참여계약서",null,null,null,"서식 바로가기"]
[null,"외부연구자 등록 신청서",null,null,null,null,"B",null,"타 기관 소속",null,null,null,null,"외부참여연구자 소속기관장 확인서",null,null,null,"서식 바로가기"]
[null,"외화송금신청서(부가가치세 대리납부 확인사항 포함)",null,null,null,null,"C",null,"학생연구자",null,null,null,null,"[전자동의] 학생연구자 연구참여확약서",null,null,null,"서식 바로가기"]
[null,"확인서",null,null,null,null,"D",null,"연구근접지원인력",null,null,null,null,"고용계약서",null,null,null,"서식 바로가기"]
[null,"간접비 계산식",null,null,null,null,"E"]
[null,"표준 거래명세서(SRnD연구비지출신청>일반tab 업로드 가능)",null,null,null,null,"F"]
[]
[]
["연구시설·장비, 연구재료비",null,null,null,null,null,null,null,null,null,"여비"]
["■ 청구 절차",null,null,null,null,null,null,null,null,null,"■ 청구 절차"]
[]
[]
[]
[]
[]
["■ 청구 시 제출서류",null,null,null,null,null,null,null,null,null,"■ 청구 시 제출서류"]
["구분",null,"제출서류",null,null,null,"서식",null,null,null,"구분",null,"제출서류",null,null,null,"서식"]
["재량구매",null,"기타지급 사용내역서",null,null,null,"SRnD 사용내역서 출력",null,null,null,"국내(시내/시외)\n국외",null,"여비 사용내역서",null,null,null,"SRnD 사용내역서 출력"]
[null,null,"거래명세서 등 증빙서류",null,null,null,"서식 바로가기",null,null,null,null,null,"국내·외 출장신청(명령)서",null,null,null,"서식 바로가기"]
["중앙구매","공통서류","구매의뢰서",null,null,null,"서식 바로가기",null,null,null,null,null,"국내·외 출장결과보고서",null,null,null,"서식 바로가기"]
[null,"①일반","관련 증빙서류",null,null,null,null,null,null,null,null,null,"출입국증명서",null,null,null,"인터넷 발급 바로가기"]
[null,"②공개입찰","관련 증빙서류",null,null,null,null,null,null,null,null,null,"기타 증빙서류"]
[null,"③수의계약","수의계약사유서",null,null,null,"서식 바로가기"]
[null,null,"관련 증빙서류"]
[]
[]
[]
["회의비",null,null,null,null,null,null,null,null,null,"연구수당"]
["■ 청구 절차",null,null,null,null,null,null,null,null,null,"■ 청구 절차"]
[]
[]
[]
[]
["■ 청구 시 제출서류",null,null,null,null,null,null,null,null,null,"■ 청구 시 제출서류"]
["구분",null,"제출서류",null,null,null,"서식",null,null,null,"구분",null,"제출서류",null,null,null,"서식"]
["공통",null,"회의록",null,null,null,"SRnD 사용내역서 출력",null,null,null,"연구수당",null,"연구수당 사용내역서",null,null,null,"SRnD 사용내역서 출력"]
["(해당 시)",null,"주말·휴일 회의 사전 품의서",null,null,null,"서식 바로가기",null,null,null,null,null,"기여도평가서 및 지급신청서",null,null,null,"서식 바로가기"]
["(지원기관 요청 시)",null,"참석자 서명부",null,null,null,"서식 바로가기"]
[]
[]
[]
["식대",null,null,null,null,null,null,null,null,null,"전문가활용비"]
["■ 청구 절차",null,null,null,null,null,null,null,null,null,"■ 청구 절차"]
[]
[]
[]
[]
["■ 청구 시 제출서류",null,null,null,null,null,null,null,null,null,"■ 청구 시 제출서류"]
["구분",null,"제출서류",null,null,null,"서식",null,null,null,"구분",null,"제출서류",null,null,null,"서식"]
["식대",null,"식대 사용내역서(초과근무확인대장)",null,null,null,"SRnD 사용내역서 출력",null,null,null,"회의수당, 강사료, 자문료 등",null,"전문가활용비 사용내역서",null,null,null,"서식 바로가기"]
[null,null,null,null,null,null,null,null,null,null,null,null,"기타 증빙서류"]
[]
[]
["보안수당",null,null,null,null,null,null,null,null,null,"학회등록비·도서구입비"]
["■ 청구 절차",null,null,null,null,null,null,null,null,null,"■ 청구 절차"]
[]
[]
[]
[]
["■ 청구 시 제출서류"]
["구분",null,"제출서류",null,null,null,"서식",null,null,null,"■ 청구 시 제출서류"]
["보안수당",null,"보안수당 사용내역서",null,null,null,"SRnD 사용내역서 출력",null,null,null,"구분",null,"제출서류",null,null,null,"서식"]
[null,null,"보안수당 지급신청서",null,null,null,"서식 바로가기",null,null,null,"학회등록비",null,"학술행사등록사용내역서",null,null,null,"SRnD 사용내역서 출력"]
[null,null,null,null,null,null,null,null,null,null,null,null,"기타 증빙서류"]
[null,null,null,null,null,null,null,null,null,null,"도서구입비",null,"도서사용내역서",null,null,null,"SRnD 사용내역서 출력"]

{"sheet":"1","index":1,"n_rows":217,"n_cols":40,"rows_kept":217,"cut":false,"hidden":false,"merged":[[129,1,129,3],[104,1,105,9],[190,5,190,6],[191,5,191,6],[192,5,192,6],[116,1,117,1],[116,2,116,3],[116,4,116,6],[117,2,117,3],[117,4,117,8],[122,1,123,1],[122,2,122,3],[123,4,123,8],[122,4,122,8],[125,1,125,9],[128,1,128,9],[150,1,150,9],[152,5,152,6],[154,5,154,6],[155,5,155,6],[153,5,153,6],[121,2,121,3],[121,4,121,6],[123,2,123,3],[114,1,115,1],[114,2,114,3],[114,4,114,6],[115,2,115,3],[115,4,115,8],[118,1,120,1],[118,2,118,3],[118,4,118,6],[119,2,119,3],[119,4,119,8],[120,2,120,3],[120,4,120,5],[120,7,120,8],[107,2,107,4],[108,4,108,9],[109,1,109,9],[111,1,111,9],[112,1,113,1],[112,2,112,3],[112,4,112,6],[113,2,113,3],[113,4,113,8],[108,1,108,3],[213,21,213,29],[197,21,197,29],[216,21,216,29],[0,3,0,6],[4,1,4,9],[4,11,4,19],[6,2,6,4],[6,12,6,14],[7,2,7,3],[7,4,7,9],[7,12,7,13],[7,14,7,19],[0,23,0,26],[4,21,4,29],[6,22,6,24],[8,1,8,9],[8,11,8,19],[10,1,10,9],[10,11,10,19],[11,1,12,1],[11,2,11,3],[11,4,11,6],[11,11,12,11],[11,12,11,13],[11,14,11,16],[12,2,12,3],[12,4,12,8],[12,12,12,13],[12,14,12,18],[8,21,8,29],[9,21,9,29],[10,21,11,21],[10,22,10,23],[10,24,10,26],[11,22,11,23],[11,24,11,28],[15,22,15,23],[15,24,15,28],[16,22,16,23],[16,24,16,25],[16,27,16,28],[13,1,14,1],[13,2,13,3],[13,4,13,6],[13,11,14,11],[13,12,13,13],[13,14,13,16],[14,2,14,3],[14,4,14,8],[14,12,14,13],[14,14,14,18],[12,21,13,21],[12,22,12,23],[12,24,12,26],[13,22,13,23],[13,24,13,28],[18,2,18,3],[18,4,18,6],[19,1,19,9],[19,11,19,19],[17,21,17,29],[15,1,17,1],[15,2,15,3],[15,4,15,6],[15,11,17,11],[15,12,15,13],[15,14,15,16],[16,2,16,3],[16,4,16,8],[16,12,16,13],[16,14,16,18],[17,2,17,3],[17,4,17,5],[17,7,17,8],[17,12,17,13],[17,14,17,15],[17,17,17,18],[14,21,16,21],[14,22,14,23],[14,24,14,26],[26,21,26,29],[32,21,32,22],[32,23,32,25],[23,1,23,9],[19,21,19,29],[20,26,20,27],[23,21,23,29],[23,11,23,12],[23,13,23,14],[23,15,23,16],[23,17,23,18],[24,3,24,4],[24,6,24,7],[24,11,24,12],[24,13,24,18],[20,2,20,3],[20,6,20,7],[20,12,20,13],[20,15,20,19],[22,11,22,12],[22,13,22,14],[22,15,22,16],[22,17,22,18],[28,1,28,2],[29,1,29,9],[31,11,31,19],[30,1,30,9],[32,11,32,19],[31,1,31,9],[33,11,33,19],[25,1,25,9],[26,11,26,19],[26,1,26,2],[27,13,27,14],[27,16,27,17],[27,1,27,2],[29,11,29,19],[33,21,33,22],[38,1,38,9],[38,11,38,19],[39,1,39,9],[41,1,41,9],[42,1,42,9],[43,1,43,9],[33,1,33,9],[35,11,35,19],[34,1,34,9],[36,11,36,19],[37,1,37,9],[37,11,37,19],[34,21,34,22],[37,21,37,29],[38,21,38,29],[44,1,44,9],[63,11,63,19],[71,1,71,9],[69,11,69,19],[70,11,70,19],[71,11,71,19],[46,21,48,21],[49,21,51,21],[51,22,51,23],[50,22,50,23],[49,22,49,23],[48,22,48,23],[47,22,47,23],[45,22,45,27],[46,22,46,23],[46,25,47,25],[48,26,48,27],[47,26,47,27],[46,26,46,27],[49,25,50,25],[51,26,51,27],[50,26,50,27],[49,26,49,27],[57,25,58,25],[83,11,83,19],[87,1,87,9],[88,1,88,9],[72,11,72,19],[73,11,73,19],[77,1,77,9],[74,11,74,19],[78,1,78,9],[75,11,75,19],[57,26,57,27],[58,26,58,27],[61,21,61,29],[56,21,56,27],[59,23,59,24],[58,23,58,24],[57,23,57,24],[132,21,132,29],[67,21,67,29],[66,21,66,29],[65,21,65,29],[59,26,59,27],[134,25,134,26],[135,25,135,26],[137,25,137,26],[121,21,121,29],[79,1,79,9],[80,1,80,9],[81,1,81,9],[82,1,82,9],[83,1,83,9],[80,11,80,19],[81,11,81,19],[95,5,95,6],[92,15,92,16],[96,5,96,6],[93,15,93,16],[90,1,90,9],[87,11,87,19],[92,1,92,9],[89,11,89,19],[94,5,94,6],[91,15,91,16],[85,1,85,9],[82,11,82,19],[86,1,86,9],[156,21,156,29],[176,21,176,29],[179,21,179,29],[189,21,189,29],[190,21,190,29],[62,21,62,29],[120,21,120,29],[119,21,119,29],[114,21,114,29],[113,21,113,29],[112,21,112,29],[111,21,111,29],[110,21,110,29],[72,21,72,29],[124,21,124,29],[148,21,148,29],[149,21,149,29],[109,21,109,29],[108,21,108,29],[102,21,102,29],[71,21,71,29],[69,21,69,29],[68,21,68,29],[126,21,126,29],[0,33,0,36],[4,31,4,39],[6,32,6,34],[8,31,8,39],[9,31,9,39],[10,31,11,31],[10,32,10,33],[10,34,10,36],[11,32,11,33],[11,34,11,38],[12,31,13,31],[12,32,12,33],[12,34,12,36],[13,32,13,33],[13,34,13,38],[14,31,16,31],[14,32,14,33],[14,34,14,36],[15,32,15,33],[15,34,15,38],[16,32,16,33],[16,34,16,35],[16,37,16,38],[38,31,38,39],[47,32,47,33],[47,36,47,37],[48,32,48,33],[48,36,48,37],[17,31,17,39],[19,31,19,39],[20,36,20,37],[23,31,23,39],[26,31,26,39],[33,31,33,32],[34,31,34,32],[58,33,58,34],[58,36,58,37],[59,33,59,34],[59,36,59,37],[62,31,62,39],[49,32,49,33],[49,36,49,37],[50,32,50,33],[50,36,50,37],[51,32,51,33],[51,36,51,37],[110,31,110,39],[111,31,111,39],[112,31,112,39],[113,31,113,39],[114,31,114,39],[120,31,120,39],[121,31,121,39],[115,31,115,39],[66,31,66,39],[67,31,67,39],[68,31,68,39],[69,31,69,39],[72,31,72,39],[103,31,103,39],[123,31,123,39],[125,31,125,39],[131,31,131,39],[133,35,133,36],[136,35,136,36],[33,33,33,35],[35,31,35,32],[39,31,39,39],[46,32,46,37],[47,31,49,31],[47,35,48,35],[50,31,52,31],[50,35,51,35],[52,32,52,33],[52,36,52,37],[57,31,57,37],[58,35,59,35],[60,33,60,34],[60,36,60,37],[63,31,63,39],[70,31,70,39],[73,31,73,39],[134,35,134,36],[109,31,109,39]]}
[]
[null,"※ 고용(근로)계약 체결 대상: 소속이 없는 자가 1개월 이상 본교 연구과제에 참여 시",null,null,null,null,null,null,null,null,null,"※ 과제참여계약 체결 대상: 참여연구자가 프리랜서 또는 개인사업자인 경우",null,null,null,null,null,null,null,null,null,"※ 필수조항 수정 불가, 인건비 지출 시 확인 예정",null,null,null,null,null,null,null,null,null,"※ 필수조항 수정 불가, 인건비 지출 시 확인 예정"]
[null,"※ 기관별 자체 고용계약서 사용 가능"]
[]
[null,"서울대학교 연구과제 고용계약서\n(근로소득자용_참여연구자)",null,null,null,null,null,null,null,null,null,"서울대학교 연구과제 참여계약서\n(기타소득자용)",null,null,null,null,null,null,null,null,null,"서울대학교 연구과제 고용계약서\n(근로소득자용_연구근접지원인력)",null,null,null,null,null,null,null,null,null,"서울대학교 연구과제 고용계약서\n(근로소득자용_연구근접지원인력(초단시간))"]
[]
[null,"서울대학교 ","○○○○○(기관명)",null,null,"의 장을 \"갑\"으로 하며, 연구책임자",null,null,"○○○","을 \"을\"로 하고,",null,"서울대학교 ","○○○○○(기관명)",null,null,"의 장을 \"갑\"으로 하며, 연구책임자",null,null,"○○○","을 \"을\"로 하고,",null,"서울대학교 ","○○○○○(기관명)",null,null,"장(이하 \"갑\"이라 함), 연구책임자(이하 \"을\"이라 함), 연구근접지원인력(이하  \"병\"",null,null,null,null,null,"서울대학교 ","○○○○○(기관명)",null,null,"장(이하 \"갑\"이라 함), 연구책임자(이하 \"을\"이라 함), 연구근접지원인력(이하  \"병\""]
[null,"참여연구자","○○○",null,"을 \"병\"으로 하여 상호간의 합의에 따라 아래와 같이 고용 계약을 체결하고",null,null,null,null,null,null,"참여연구자","○○○",null,"을 \"병\"으로 하여 상호간의 합의에 따라 아래와 같이 과제참여 계약을 체결하고",null,null,null,null,null,null,"이라 함)은 상호간의 합의에 따라 아래와 같이 고용계약을 체결하고 이를 신의와 성실로서 준수할 것을 확약한다.  ",null,null,null,null,null,null,null,null,null,"이라 함)은 상호간의 합의에 따라 아래와 같이 고용계약을 체결하고 이를 신의와 성실로서 준수할 것을 확약한다.  "]
[null,"이를 신의와 성실로서 준수할 것을 확약한다.",null,null,null,null,null,null,null,null,null,"이를 신의와 성실로서 준수할 것을 확약한다."]
[null,null,null,null,null,null,null,null,null,null,null,null,null,null,null,null,null,null,null,null,null,"제1조 (계약당사자) ",null,null,null,null,null,null,null,null,null,"제1조 (계약당사자) "]
[null,"제1조 (계약당사자) ",null,null,null,null,null,null,null,null,null,"제1조 (계약당사자) ",null,null,null,null,null,null,null,null,null,"갑\n(고용기관장)","서울대학교 ",null,{"$f":"W7","v":"○○○○○(기관명)"},null,null,"성명","○○○",null,null,"갑\n(고용기관장)","서울대학교 ",null,{"$f":"AG7","v":"○○○○○(기관명)"},null,null,"성명","○○○"]
[null,"갑\n(고용기관장)","서울대학교 ",null,{"$f":"C7","v":"○○○○○(기관명)"},null,null,"성명","○○○",null,null,"갑\n(관리기관장)","서울대학교 ",null,{"$f":"M7","v":"○○○○○(기관명)"},null,null,"성명","○○○",null,null,null,"주소",null,"서울시 관악구 관악로 1",null,null,null,null,null,null,null,"주소",null,"서울시 관악구 관악로 1"]
[null,null,"주소",null,"서울시 관악구 관악로 1",null,null,null,null,null,null,null,"주소",null,"서울시 관악구 관악로 1",null,null,null,null,null,null,"을\n(연구책임자)","서울대학교",null,"○○○○○",null,null,"성명",{"$f":"AC7","v":0},null,null,"을\n(연구책임자)","서울대학교",null,"○○○○○",null,null,"성명",{"$f":"AM7","v":0}]
[null,"을\n(연구책임자)","서울대학교",null,"○○○○○",null,null,"성명",{"$f":"I7","v":"○○○"},null,null,"을\n(연구책임자)","서울대학교",null,"○○○○○",null,null,"성명",{"$f":"S7","v":"○○○"},null,null,null,"주소",null,"서울시 관악구 봉천로 1",null,null,null,null,null,null,null,"주소",null,"서울시 관악구 봉천로 1"]
[null,null,"주소",null,"서울시 관악구 봉천로 1",null,null,null,null,null,null,null,"주소",null,"서울시 관악구 봉천로 1",null,null,null,null,null,null,"병\n(연구근접지원인력)","서울대학교",null,{"$f":"W7","v":"○○○○○(기관명)"},null,null,"성명",{"$f":"W8","v":0},null,null,"병\n(연구근접지원인력)","서울대학교",null,{"$f":"AG7","v":"○○○○○(기관명)"},null,null,"성명",{"$f":"AG8","v":0}]
[null,"병\n(참여연구자)","서울대학교",null,{"$f":"C7","v":"○○○○○(기관명)"},null,null,"성명",{"$f":"C8","v":"○○○"},null,null,"병\n(참여연구자)","서울대학교",null,{"$f":"O12","v":"○○○○○(기관명)"},null,null,"성명",{"$f":"M8","v":"○○○"},null,null,null,"주소",null,"서울시 관악구 봉천로 2",null,null,null,null,null,null,null,"주소",null,"서울시 관악구 봉천로 2"]
[null,null,"주소",null,"서울시 관악구 봉천로 2",null,null,null,null,null,null,null,"주소",null,"서울시 관악구 봉천로 2",null,null,null,null,null,null,null,"전화번호",null,"010-123-4567",null,"주민등록번호",0,null,null,null,null,"전화번호",null,"010-123-4567",null,"주민등록번호",0]
[null,null,"전화번호",null,"010-123-4567",null,"주민등록번호",0,null,null,null,null,"전화번호",null,"010-123-4567",null,"주민등록번호",0,null,null,null,"  ※ 다수과제에 참여하는 경우 “을”(연구책임자)을 모두 명시",null,null,null,null,null,null,null,null,null,"  ※ 다수과제에 참여하는 경우 “을”(연구책임자)을 모두 명시"]
[null,"  ","  ",null,"  ",null,null,"  ","  "]
[null,"제2조(직급 및 근무처)",null,null,null,null,null,null,null,null,null,"제2조(직급 및 참여과제)",null,null,null,null,null,null,null,null,null,"제2조(직급 및 근무처)",null,null,null,null,null,null,null,null,null,"제2조(직급 및 근무처)"]
[null,"“병”의 직급은","연구보조원",null," 으로 하며,"," 서울대학교",{"$f":"E12","v":"○○○○○(기관명)"},null,"에 근무한다. ",null,null,"“병”의 직급은","연구보조원",null," 으로 하며,","아래 과제에 참여한다.",null,null,null,null,null,"“병”의 직급은 연구근접지원인력으로 하며,  서울대학교",null,null,null,null,{"$f":"Y11","v":"○○○○○(기관명)"},null,"에 근무한다. ",null,null,"“병”의 직급은 연구근접지원인력(초단시간)으로 하며,  서울대학교",null,null,null,null,{"$f":"AI11","v":"○○○○○(기관명)"},null,"에 근무한다. "]
[null,"(다만, 업무상 필요가 있을 경우 근무지는 변경될 수 있다.)",null,null,null,null,null,null,null,null,null,null,null,null,null,null,null,null,null,null,null,"(다만, 업무상 필요가 있을 경우 근무지는 변경될 수 있다.)",null,null,null,null,null,null,null,null,null,"(다만, 업무상 필요가 있을 경우 근무지는 변경될 수 있다.)"]
[null,null,null,null,null,null,null,null,null,null,null,"SRnD 과제번호",null,"123-45678910",null,"지원기관",null,"○○○○○○"]
[null,"제3조(계약기간 및 근로 조건)",null,null,null,null,null,null,null,null,null,"연구책임자",null,{"$f":"S14","v":"○○○"},null,"연구기간",null,"yymmdd ~ yymmdd",null,null,null,"제3조(계약기간 및 근로 조건)",null,null,null,null,null,null,null,null,null,"제3조(계약기간 및 근로 조건)"]
[null,"① “병”의 계약기간은",null,"yymmdd",null,"부터","yymmdd",null,"까지로 한다.",null,null,"연구과제명",null,"○○○○○○○○○○",null,null,null,null,null,null,null,"① 계약기간",null,null,null,null,null,null,null,null,null,"① 계약기간"]
[null,"② 근로계약기간이 만료되면 근로계약은 당연히 종료된다. 다만, 새롭게 근로계약이 갱신된 경우에는 그러지 아니하다.",null,null,null,null,null,null,null,null,null,null,null,null,null,null,null,null,null,null,null,"  1. “병”의 계약기간은",null,null,"yymmdd","부터","yymmdd","까지로 한다.",null,null,null,"  1. “병”의 계약기간은",null,null,"yymmdd","부터","yymmdd","까지로 한다."]
[null,"- 소정 근로 시간 :",null,"hh:mm","부터","hh:mm","까지",null,null,null,null,"제3조(계약기간 및 근로 조건)",null,null,null,null,null,null,null,null,null,"  2. 근로계약기간이 만료되면 근로계약은 당연히 종료된다.",null,null,null,null,null,null,null,null,null,"  2. 근로계약기간이 만료되면 근로계약은 당연히 종료된다."]
[null,"- 근무일/휴일 :  주",null,"n","일 근무,","주휴일 매주","토,일","요일",null,null,null,"① “병”의 계약기간은",null,"yymmdd",null,"부터","yymmdd",null,"까지로 한다.",null,null,"  3. “병”은 제3항의 연구과제수행을 위하여 근로계약을 체결하며, 근로계약 기간 이내라도 해당 사업의 완료(종료)로",null,null,null,null,null,null,null,null,null,"  3. “병”은 제3항의 연구과제수행을 위하여 근로계약을 체결하며, 근로계약 기간 이내라도 해당 사업의 완료(종료)로"]
[null,"- 급여:",null,"월급",1234567,"원",null,null,null,null,null,null,null,null,null,null,null,null,null,null,null,"     근로관계가 종료될 수 있다. ",null,null,null,null,null,null,null,null,null,"     근로관계가 종료될 수 있다. "]
[null,"(임금은 계약일 당시 책정된 연구비의 규모에 따른 것이며, 연구비 지원금액의 변경에 따라 증감 할 수 있다.)",null,null,null,null,null,null,null,null,null,"제4조(“갑”의 의무)",null,null,null,null,null,null,null,null,null,"  4. 해당 계약은 「기간제 및 단시간근로자 보호 등에 관한 법률」(이하 “기간제법”이라 함) 제4조제1항 단서 제1호",null,null,null,null,null,null,null,null,null,"  4. 해당 계약은 「기간제 및 단시간근로자 보호 등에 관한 법률」(이하 “기간제법”이라 함) 제4조제1항 제6호 및 동법 시행령"]
[null,"- 지급방법 : 예금통장에 입금",null,null,null,null,null,null,null,null,null,"① “갑”은 “병”의 인건비를 참여 계약기간 내에 총",null,null,null,1234567,"원 기준으로 “병”에게 갑이 정한 인건비 지급일에 기타소득세를 ",null,null,null,null,"   “사업의 완료 또는 특정한 업무의 완성에 필요한 기간을 정한 경우”에 해당한다. [※제3조1항4목은 단일과제 참여시에만 기재]",null,null,null,null,null,null,null,null,null,"      제3조제3항 6호 “「근로기준법」 제18조제3항에 따른 1주 동안의 소정근로시간이 뚜렷하게 짧은 단시간근로자를 사용하는 "]
[null,"- 연차유급휴가 : 근로기준법에서 정하는 바에 따라 부여함",null,null,null,null,null,null,null,null,null,"원천징수 후 지급한다.",null,null,null,null,null,null,null,null,null,"② 근로조건",null,null,null,null,null,null,null,null,null,"      경우”에 해당한다."]
[null,null,null,null,null,null,null,null,null,null,null,"② “을”은 “병”의 과제 인건비계상률을 조정할 수 있으며, 조정된 인건비계상률에 따라 인건비를 지급할 수 있다.",null,null,null,null,null,null,null,null,null,"  1. 소정 근로 시간 :",null,"○시 ○분 ∼ ○시 ○분까지",null,null,"(휴게시간: ○시 ○분∼○시 ○분까지)",null,null,null,null,"② 근로조건(휴게시간을 제외하고 1주 15시간 미만 근무를 기준으로 함)"]
[null,"제4조(“갑”의 의무)",null,null,null,null,null,null,null,null,null,"③ “병”의 퇴직금은 지급하지 않는다.",null,null,null,null,null,null,null,null,null,"  2. 근무일/휴일 :  주",null,"○","일 근무,","주휴일 매주","○","요일",null,null,null,"  1. 소정 근로 시간 :",null,"○시 ○분 ∼ ○시 ○분까지",null,null,"(휴게시간: ○시 ○분∼○시 ○분까지)"]
[null,"① 과제별 지급내역은 서울대학교 연구행정통합관리시스템에서 발급되는 “참여연구원 확인서”로 갈음한다.",null,null,null,null,null,null,null,null,null,null,null,null,null,null,null,null,null,null,null,"  3. 임금:",null,"월급",1234567,"원",null,null,null,null,null,"  2. 근무일/휴일 :  주",null,"○","일 근무,","주휴일 매주","해당사항 없음","(근로기준법 제13조 제3항)"]
[null,"② \"갑\"은  「국가연구개발사업 연구개발비 사용 기준」에 따라 \"병\"의 급여 총액에 4대보험 기관부담금과 본인의 퇴직급여충당금이",null,null,null,null,null,null,null,null,null,"제5조 (“병”의 의무)",null,null,null,null,null,null,null,null,null,"  4. 상여금:                       없음(        ),     있음(        )",null,null,null,null,1234567,"원",null,null,null,"  3. 임금:",null,"월급",1234567,"원"]
[null," 별도로 계상되어 있는지 확인하여야 한다.",null,null,null,null,null,null,null,null,null,"① “병”은 본 계약서 제 3 조에 정한 기간 동안 “갑”이 지정하는 연구업무를 충실히 이행하여야 한다.",null,null,null,null,null,null,null,null,null,"  5. 기타급여(제수당 등):     없음(        ),     있음(        )",null,null,null,null,1234567,"원",null,null,null,"  4. 상여금:                       없음(        ),     있음(        )",null,null,null,null,1234567,"원"]
[null,"③ “갑”은 “병”에게 갑이 정한 인건비 지급일에 소득세와 4대 보험 등 사회보장성 보험료의 개인부담금을",null,null,null,null,null,null,null,null,null,"② “병”은 참여 계약 중 직무와 관련하여 취득한 각종 비밀을 참여 계약 중 또는 참여계약 종료 후에도 누설하여서는 아니 된다.",null,null,null,null,null,null,null,null,null,"     (임금은 계약일 당시 책정된 연구비의 규모에 따른 것이며, 연구비 지원 금액의 변경에 따라 증감 할 수 있다.)",null,null,null,null,null,null,null,null,null,"  5. 기타급여(제수당 등):     없음(        ),     있음(        )",null,null,null,null,1234567,"원"]
[null,"원천징수 후 지급한다.",null,null,null,null,null,null,null,null,null,"③ “병”은 본 계약서 제 3 조에 정한 기간 동안 연구업무를 수행함으로 인하여 발생한 연구결과를 “갑”에게 귀속시켜야 한다.",null,null,null,null,null,null,null,null,null,"  6. 지급방법 : 은행계좌로 입금",null,null,null,null,null,null,null,null,null,"     (임금은 계약일 당시 책정된 연구비의 규모에 따른 것이며, 연구비 지원 금액의 변경에 따라 증감 할 수 있다.)"]
[null,"④ “병”의 과제 인건비계상률이 변경되어 연구량이 변동될 경우 인건비를 부분적으로 조정 할 수 있다.",null,null,null,null,null,null,null,null,null,null,null,null,null,null,null,null,null,null,null,"  7. 임금지급일: 매월",null,null,"일(휴일의 경우는 전일 지급)",null,null,null,null,null,null,"  6. 지급방법 : 은행계좌로 입금"]
[null,null,null,null,null,null,null,null,null,null,null,"제6조(보안서약) \"병'은 연구에 참여할 경우 다음 사항을 준수할 것을 엄숙히 서약한다.",null,null,null,null,null,null,null,null,null,"  8. 휴가 및 휴일: 근로기준법에서 정하는 바에 따라 부여함",null,null,null,null,null,null,null,null,null,"  7. 임금지급일: 매월",null,null,"일(휴일의 경우는 전일 지급)"]
[null,"제5조 (“병”의 의무)",null,null,null,null,null,null,null,null,null,"①  본인은 본 연구과제에 참여함에 있어 제반 보안관계 규정 및 지침을 성실히 수행한다.",null,null,null,null,null,null,null,null,null,"  9. 수행업무: 참여연구과제와 관련된 지원업무(회계 및 정산 등)",null,null,null,null,null,null,null,null,null,"  8. 연차휴가: 해당사항 없음(근로기준법 제13조 제3항)"]
[null,"① “병”은 본 계약서에 정한 기간 동안 “갑”이 지정하는 연구업무를 충실히 이행하여야 한다.",null,null,null,null,null,null,null,null,null,"② “병”은 연구 정보를 누설함이 법률위반행위가 됨을 명심하고 재직 중은 물론 퇴직 후에도 알게 된 모든 기밀 사항을 일체 타인",null,null,null,null,null,null,null,null,null,null,null,null,null,null,null,null,null,null,null,"  9. 수행업무: 참여연구과제와 관련된 지원업무(회계 및 정산 등)"]
[null,"② “병”은 참여 계약 중 직무와 관련하여 취득한 각종 비밀을 참여 계약 중 또는 참여계약 종료 후에도 누설하여서는 아니 된다.",null,null,null,null,null,null,null,null,null,"에게 누설하지 아니하여야 한다.",null,null,null,null,null,null,null,null,null,"※ [복수과제 참여 시] "]
[null,"③ “병”은 본 계약서에서 정한 기간 동안 연구업무를 수행함으로 인하여 발생한 연구결과를 “갑”에게 귀속시켜야 한다.",null,null,null,null,null,null,null,null,null,"③ “병”은 관계법규와 학칙을 준수하며, 연구과제에 대한 정보를 누설한 때에는 아래의 관계법규와 학칙에 따라 엄중한 처벌과 ",null,null,null,null,null,null,null,null,null,"③ \"병\"이 참여하는 연구과제 및 참여기간은 아래와 같으며, 총 참여기간은 2년 미만으로 한다.",null,null,null,null,null,null,null,null,null,"※ [복수과제 참여 시] "]
[null,"④ \"병\"은 원 소속기관 \"갑\"에서의 과제 수행을 원칙으로 한다. 다만, \"병\"이 \"갑\"과 체결한 고용계약 기간 중에 서울대학교 타 기관 ",null,null,null,null,null,null,null,null,null,"징계를 받을 것을 서약한다.",null,null,null,null,null,null,null,null,null,"연번","과제정보",null,null,null,null,null,"인건비계상률","인건비",null,"③ \"병\"이 참여하는 연구과제 및 참여기간은 아래와 같으며, 총 참여기간은 2년 미만으로 한다."]
[null,"연구과제를 참여하게 될 경우 \"갑\"과 \"을\"에게 관련사실을 지체없이 통보하고, <연구과제참여합의서>를 추가 작성하여야 한다.",null,null,null,null,null,null,null,null,null," 1. 「과학기술기본법」 제11조(국가연구개발사업의 추진)",null,null,null,null,null,null,null,null,null,"①","연구책임자",null,null,"연구기간","(당해연도)",null,null,null,null,"연번","과제정보",null,null,null,null,null,"인건비계상률","인건비"]
[null,null,null,null,null,null,null,null,null,null,null," 2. 「국가연구개발혁신법」 제21조(국가연구개발사업 등의 보안)",null,null,null,null,null,null,null,null,null,null,"과제명",null,null,null,"(다년도)",null,null,null,null,"①","연구책임자",null,null,"연구기간","(당해연도)"]
[null,"제6조(보안서약) \"병'은 연구에 참여할 경우 다음 사항을 준수할 것을 엄숙히 서약한다.",null,null,null,null,null,null,null,null,null," 3. 「산업기술의 유출방지 및 보호에 관한 법률」 제12조(국가연구개발사업의 보호관리)",null,null,null,null,null,null,null,null,null,null,"과제번호",null,null,"참여기간",null,null,null,null,null,null,"과제명",null,null,null,"(다년도)"]
[null,"①  본인은 본 연구과제에 참여함에 있어 제반 보안관계 규정 및 지침을 성실히 수행한다.",null,null,null,null,null,null,null,null,null," 4. 「서울대학교 연구원 임용 규정」 제6조(해임·해촉) 등 각종 서울대학교 학칙·규정",null,null,null,null,null,null,null,null,null,"②","연구책임자",null,null,"연구기간","(당해연도)",null,null,null,null,null,"과제번호",null,null,"참여기간"]
[null,"② “병”은 연구 정보를 누설함이 법률위반행위가 됨을 명심하고 재직 중은 물론 퇴직 후에도 알게 된 모든 기밀 사항을 일체 타인",null,null,null,null,null,null,null,null,null,null,null,null,null,null,null,null,null,null,null,null,"과제명",null,null,null,"(다년도)",null,null,null,null,"②","연구책임자",null,null,"연구기간","(당해연도)"]
[null,"에게 누설하지 아니하여야 한다.",null,null,null,null,null,null,null,null,null,"제7조(개인정보 제공 및 활용 동의) “병”은 아래의 내용을 세심하게 읽고 확인한 후 “갑”의 개인정보 및 고유식별정보의 수집과 ",null,null,null,null,null,null,null,null,null,null,"과제번호",null,null,"참여기간",null,null,null,null,null,null,"과제명",null,null,null,"(다년도)"]
[null,"③ “병”은 관계법규와 학칙을 준수하며, 연구과제에 대한 정보를 누설한 때에는 아래의 관계법규와 학칙에 따라 엄중한 처벌과 ",null,null,null,null,null,null,null,null,null,"그 이용, 그리고 제 3자에 대한 제공에 동의하는 경우에 본 계약서의 개인정보 제공, 활용 및 제3자 제공 동의 서명란에 서명 또는",null,null,null,null,null,null,null,null,null,"*3개 이상 과제 참여 시 추가하여 작성",null,null,null,null,null,null,null,null,null,null,"과제번호",null,null,"참여기간"]
[null,"징계를 받을 것을 서약한다.",null,null,null,null,null,null,null,null,null,"날인하여야 한다.",null,null,null,null,null,null,null,null,null,null,null,null,null,null,null,null,null,null,null,"*3개 이상 과제 참여 시 추가하여 작성"]
[null," 1. 「과학기술기본법」 제11조(국가연구개발사업의 추진)",null,null,null,null,null,null,null,null,null,"① “병”의 개인정보 제공 및 이용에 대한 동의",null,null,null,null,null,null,null,null,null,"※ [단일과제 참여 시] "]
[null," 2. 「국가연구개발혁신법」 제21조(국가연구개발사업 등의 보안)",null,null,null,null,null,null,null,null,null," 1. “갑”은 연구관리 용도로 “병”의 개인정보(고유식별정보 포함)를 보유한다.",null,null,null,null,null,null,null,null,null,"③ \"병\"이 참여하는 연구과제 및 참여기간은 아래와 같으며, 계약 기간은 참여 기간 종료일 이내로 한다.",null,null,null,null,null,null,null,null,null,"※ [단일과제 참여 시] "]
[null," 3. 「산업기술의 유출방지 및 보호에 관한 법률」 제12조(국가연구개발사업의 보호관리)",null,null,null,null,null,null,null,null,null,"   ▪ 필수정보 : 성명, 소속, 직위, 계좌번호, 주민등록번호(고유식별정보), 국적, 전화, 이메일",null,null,null,null,null,null,null,null,null,"과제정보",null,null,null,null,null,null,"인건비계상률","인건비",null,"③ \"병\"이 참여하는 연구과제 및 참여기간은 아래와 같으며, 계약 기간은 참여 기간 종료일 이내로 한다."]
[null," 4. 「서울대학교 연구원 임용 규정」 제6조(해임·해촉) 등 각종 서울대학교 학칙·규정",null,null,null,null,null,null,null,null,null,"   ▪ 보유목적 : 인건비 및 수당 지급, 세무신고, 경력증명서 발급 등 연구관리 제반사항",null,null,null,null,null,null,null,null,null,"연구책임자",null,null,null,"연구기간","(당해연도)",null,null,null,null,"과제정보",null,null,null,null,null,null,"인건비계상률","인건비"]
[null,null,null,null,null,null,null,null,null,null,null,"2. “갑”이 수집한 “병”의 개인정보는 「서울대학교 연구비 관리 규정」 제31조(관계서류의 보존)에 따라 5년간 보관합니다.",null,null,null,null,null,null,null,null,null,"과제명",null,null,null,null,"(다년도)",null,null,null,null,"연구책임자",null,null,null,"연구기간","(당해연도)"]
[null,"제7조(개인정보 제공 및 활용 동의) “병”은 아래의 내용을 세심하게 읽고 확인한 후 “갑”의 개인정보 및 고유식별정보의 수집과 ",null,null,null,null,null,null,null,null,null,"3. “병”은 자신의 개인정보(고유식별정보 포함) 수집에 동의하지 않을 수 있으나, 이 경우 인건비 및 수당지급이 제한될 수 있다.",null,null,null,null,null,null,null,null,null,"과제번호",null,null,null,"참여기간",null,null,null,null,null,"과제명",null,null,null,null,"(다년도)"]
[null,"그 이용, 그리고 제 3자에 대한 제공에 동의하는 경우에 본 계약서의 개인정보 제공, 활용 및 제3자 제공 동의 서명란에 서명 또는",null,null,null,null,null,null,null,null,null,"② “병”의 개인정보 제 3자 제공에 대한 동의",null,null,null,null,null,null,null,null,null,null,null,null,null,null,null,null,null,null,null,"과제번호",null,null,null,"참여기간"]
[null,"날인하여야 한다.",null,null,null,null,null,null,null,null,null," 1. “갑”은 원칙적으로 “병”의 개인정보를 제1항의 개인정보의 수집·이용 목적에서 명시한 범위 내에서 처리하며, “병”의 사전 동의",null,null,null,null,null,null,null,null,null,"제4조(“갑”과 \"을\"의 의무)"]
[null,"① “병”의 개인정보 제공 및 이용에 대한 동의",null,null,null,null,null,null,null,null,null," 없이는 본래의 범위를 초과하여 처리하거나 제3자에게 제공하지 않는다. 단, 다음의 경우에는 개인정보를 제공할 수 있다.",null,null,null,null,null,null,null,null,null,"① 과제별 지급내역은 서울대학교 연구행정통합관리시스템에서 발급되는 “참여연구원 확인서”로 갈음한다. ",null,null,null,null,null,null,null,null,null,"제4조(“갑”과 \"을\"의 의무)"]
[null," 1. “갑”은 연구관리 용도로 “병”의 개인정보(고유식별정보 포함)를 보유한다.",null,null,null,null,null,null,null,null,null,"   ▪ “병”이 사전에 제3자 제공 및 공개에 동의한 경우",null,null,null,null,null,null,null,null,null,"② “갑”은 「국가연구개발사업 연구개발비 사용 기준」에 따라 “병”의 급여 총액에 4대 보험 기관부담금과 본인의 퇴직",null,null,null,null,null,null,null,null,null,"① 과제별 지급내역은 서울대학교 연구행정통합관리시스템에서 발급되는 “참여연구원 확인서”로 갈음한다. "]
[null,"   ▪ 필수정보 : 성명, 소속, 직위, 계좌번호, 주민등록번호(고유식별정보), 국적, 전화, 이메일",null,null,null,null,null,null,null,null,null,"    ▪ 법령 등에 의해 제공이 요구되는 경우",null,null,null,null,null,null,null,null,null,"급여충당금이 별도로 계상되어 있는지 확인하여야 한다.",null,null,null,null,null,null,null,null,null,"② “갑”은 「국가연구개발사업 연구개발비 사용 기준」에 따라 “병”의 급여 총액에 4대 보험 기관부담금과 본인의 퇴직"]
[null,"   ▪ 보유목적 : 인건비 및 수당 지급, 세무신고, 경력증명서 발급 등 연구관리 제반사항",null,null,null,null,null,null,null,null,null,"   ▪ 서비스의 제공에 관한 계약의 이행을 위하여 필요한 개인정보로서 경제적/기술적인 사유로 통상의 동의를 받는 것이 현저히 ",null,null,null,null,null,null,null,null,null,"③ “갑”은 “병”에게 갑이 정한 인건비 지급일에 소득세와 4대 보험 등 사회보장성 보험료의 개인부담금을 원천징수 후 지급한다. ",null,null,null,null,null,null,null,null,null,"급여충당금이 별도로 계상되어 있는지 확인하여야 한다."]
[null,"2. “갑”이 수집한 “병”의 개인정보는「서울대학교 연구비 관리 규정」 제31조(관계서류의 보존)에 따라 5년간 보관합니다.",null,null,null,null,null,null,null,null,null,"     곤란한 경우",null,null,null,null,null,null,null,null,null,"④ “병”의 과제 인건비계상률이 변동될 경우 인건비를 부분적으로 조정 할 수 있다.",null,null,null,null,null,null,null,null,null,"③ “갑”은 “병”에게 갑이 정한 인건비 지급일에 소득세와 4대 보험 등 사회보장성 보험료의 개인부담금을 원천징수 후 지급한다. "]
[null,"3. “병”은 자신의 개인정보(고유식별정보 포함) 수집에 동의하지 않을 수 있으나, 이 경우 인건비 및 수당지급이 제한될 수 있다.",null,null,null,null,null,null,null,null,null,"    ▪ 통계작성 및 학술연구 등의 목적을 위하여 필요한 경우로서 특정 개인을 알아 볼 수 없는 형태로 개인정보를 제공하는 경우",null,null,null,null,null,null,null,null,null,"⑤ “병”은 국가연구개발사업에서 연구수당을 지급받을 수 없다. ",null,null,null,null,null,null,null,null,null,"④ “병”의 과제 인건비계상률이 변동될 경우 인건비를 부분적으로 조정 할 수 있다."]
[null,"② “병”의 개인정보 제 3자 제공에 대한 동의",null,null,null,null,null,null,null,null,null,null,null,null,null,null,null,null,null,null,null,"⑥ “갑”과 “을”은 제3조제2항에 명시된 업무 외의 기관운영에 필요한 상시 업무를 “병”에게 지시할 수 없다.",null,null,null,null,null,null,null,null,null,"⑤ “병”은 국가연구개발사업에서 연구수당을 지급받을 수 없다. "]
[null," 1. “갑”은 원칙적으로 “병”의 개인정보를 제1항의 개인정보의 수집·이용 목적에서 명시한 범위 내에서 처리하며, “병”의 사전 동의",null,null,null,null,null,null,null,null,null,"제8조 (계약해지)",null,null,null,null,null,null,null,null,null,"⑦ “병”에 대한 복무관리 및 인건비 지급 등에 대해서는 인건비계상률 및 참여기간을 고려하여 “을”이 책임을 진다. ",null,null,null,null,null,null,null,null,null,"⑥ “갑”과 “을”은 제3조제2항에 명시된 업무 외의 기관운영에 필요한 상시 업무를 “병”에게 지시할 수 없다."]
[null," 없이는 본래의 범위를 초과하여 처리하거나 제3자에게 제공하지 않는다. 단, 다음의 경우에는 개인정보를 제공할 수 있다.",null,null,null,null,null,null,null,null,null,"① “병”이 다음 각 호의 어느 하나에 해당할 경우 “갑”은 서면 통지로 “병”과의 참여계약을 해지할 수 있다. ",null,null,null,null,null,null,null,null,null,null,null,null,null,null,null,null,null,null,null,"⑦ “병”에 대한 복무관리 및 인건비 지급 등에 대해서는 인건비계상률 및 참여기간을 고려하여 “을”이 책임을 진다. "]
[null,"   ▪ “병”이 사전에 제3자 제공 및 공개에 동의한 경우",null,null,null,null,null,null,null,null,null,"1. 본 참여계약을 위반하는 경우",null,null,null,null,null,null,null,null,null,"제5조 (“병”의 의무)"]
[null,"    ▪ 법령 등에 의해 제공이 요구되는 경우",null,null,null,null,null,null,null,null,null,"2. 질병, 실종 또는 형사소추 등으로 연구업무 수행이 불가능한 경우",null,null,null,null,null,null,null,null,null,"① “병”은 본 계약서에 정한 기간 동안 “갑”이 지정하는 연구업무를 충실히 이행하여야 한다. ",null,null,null,null,null,null,null,null,null,"제5조 (“병”의 의무)"]
[null,"   ▪ 서비스의 제공에 관한 계약의 이행을 위하여 필요한 개인정보로서 경제적/기술적인 사유로 통상의 동의를 받는 것이 현저히 ",null,null,null,null,null,null,null,null,null,"3. 연구업무를 성실히 준수하지 아니하는 경우",null,null,null,null,null,null,null,null,null,"② “병”은 참여 계약 중 직무와 관련하여 취득한 각종 비밀을 참여 계약 중 또는 참여계약 종료 후에도 누설하여서는 아니 된다.",null,null,null,null,null,null,null,null,null,"① “병”은 본 계약서에 정한 기간 동안 “갑”이 지정하는 연구업무를 충실히 이행하여야 한다. "]
[null,"     곤란한 경우",null,null,null,null,null,null,null,null,null,"4. 기타 사회적인 물의를 일으키거나 연구자로서의 품위를 손상하여 본교의 명예를 훼손한 경우",null,null,null,null,null,null,null,null,null,"③ “병”은 본 계약서에서 정한 기간 동안 연구업무를 수행함으로 인하여 발생한 연구결과를 “갑”에게 귀속시켜야 한다.",null,null,null,null,null,null,null,null,null,"② “병”은 참여 계약 중 직무와 관련하여 취득한 각종 비밀을 참여 계약 중 또는 참여계약 종료 후에도 누설하여서는 아니 된다."]
[null,"    ▪ 통계작성 및 학술연구 등의 목적을 위하여 필요한 경우로서 특정 개인을 알아 볼 수 없는 형태로 개인정보를 제공하는 경우",null,null,null,null,null,null,null,null,null,"② 연구비 지원기관으로부터 연구비 지원이 중단되거나 연구비 지원 금액의 규모가 변경된 경우 “갑”은 “병”과의 참여 계약을 ",null,null,null,null,null,null,null,null,null,"④ “병”은 원 소속기관 “갑”에서의 과제 수행을 원칙으로 한다. 다만, “병”이 “갑”과 체결한 고용계약 기간 중에 서울대학교 타 기관 ",null,null,null,null,null,null,null,null,null,"③ “병”은 본 계약서에서 정한 기간 동안 연구업무를 수행함으로 인하여 발생한 연구결과를 “갑”에게 귀속시켜야 한다."]
[null,null,null,null,null,null,null,null,null,null,null,"해지 또는 계약 내용의 일부를 변경할 수 있으며, “병”은 이에 따른다.  ",null,null,null,null,null,null,null,null,null,"   연구과제를 참여하게 될 경우 “갑”과 “을”에게 관련사실을 지체 없이 통보하여야 하며,  <연구과제참여합의서>를 추가로 작성",null,null,null,null,null,null,null,null,null,"④ “병”은 원 소속기관 “갑”에서의 과제 수행을 원칙으로 한다. 다만, “병”이 “갑”과 체결한 고용계약 기간 중에 서울대학교 타 기관 "]
[null,"제8조 (계약해지)",null,null,null,null,null,null,null,null,null,"③ 연구과제 수행을 위하여 참여연구자를 교체하여야 하는 경우  “갑”은 “병”과의 참여 계약을 해지할 수 있으며,",null,null,null,null,null,null,null,null,null,"   하여야 한다. ",null,null,null,null,null,null,null,null,null,"   연구과제를 참여하게 될 경우 “갑”과 “을”에게 관련사실을 지체 없이 통보하여야 하며,  <연구과제참여합의서>를 추가로 작성"]
[null,"① “병”이 다음 각 호의 어느 하나에 해당할 경우 “갑”은 서면 통지로 “병”과의 근로계약을 해지할 수 있다. ",null,null,null,null,null,null,null,null,null," “병”은 이에 따른다.  ",null,null,null,null,null,null,null,null,null,null,null,null,null,null,null,null,null,null,null,"   하여야 한다. "]
[null,"1. 본 근로계약을 위반하는 경우",null,null,null,null,null,null,null,null,null,null,null,null,null,null,null,null,null,null,null,"제6조(보안서약) \"병'은 연구에 참여할 경우 다음 사항을 준수할 것을 엄숙히 서약한다."]
[null,"2. 질병, 실종 또는 형사소추 등으로 연구업무 수행이 불가능한 경우",null,null,null,null,null,null,null,null,null,"제9조 (기타사항)",null,null,null,null,null,null,null,null,null,"①  본인은 본 연구과제에 참여함에 있어 제반 보안관계 규정 및 지침을 성실히 수행한다.",null,null,null,null,null,null,null,null,null,"제6조(보안서약) \"병'은 연구에 참여할 경우 다음 사항을 준수할 것을 엄숙히 서약한다."]
[null,"3. 연구업무를 성실히 준수하지 아니하는 경우",null,null,null,null,null,null,null,null,null,"① 본 계약서에 규정되지 않은 사항은 “갑”과 “병”이 합의하여 정하되 합의가 되지 않을 경우 “갑”이 정하는 바에 따른다.",null,null,null,null,null,null,null,null,null,"② “병”은 연구 정보를 누설함이 법률위반행위가 됨을 명심하고 재직 중은 물론 퇴직 후에도 알게 된 모든 기밀 사항을 일체 타인",null,null,null,null,null,null,null,null,null,"①  본인은 본 연구과제에 참여함에 있어 제반 보안관계 규정 및 지침을 성실히 수행한다."]
[null,"4. 기타 사회적인 물의를 일으키거나 연구자로서의 품위를 손상하여 본교의 명예를 훼손한 경우",null,null,null,null,null,null,null,null,null,"② 본 계약은 고용관계에 의한 계약이 아닌 연구과제 참여에 의한 연구과제 참여계약이므로 근로기준법 등 근로관계 법령이 ",null,null,null,null,null,null,null,null,null,"에게 누설하지 아니하여야 한다.",null,null,null,null,null,null,null,null,null,"② “병”은 연구 정보를 누설함이 법률위반행위가 됨을 명심하고 재직 중은 물론 퇴직 후에도 알게 된 모든 기밀 사항을 일체 타인"]
[null,"② 연구비 지원기관으로부터 연구비 지원이 중단되거나, 연구비 지원규모 변경 등에 따라 근로 조건이 변경 될 수 있다.",null,null,null,null,null,null,null,null,null,"정하는 바에 따르지 않는다.",null,null,null,null,null,null,null,null,null,"③ “병”은 관계법규와 학칙을 준수하며, 연구과제에 대한 정보를 누설한 때에는 아래의 관계법규와 학칙에 따라 엄중한 처벌과 ",null,null,null,null,null,null,null,null,null,"에게 누설하지 아니하여야 한다."]
[null,null,null,null,null,null,null,null,null,null,null,"③ 본 계약의 체결을 증명하기 위하여 계약서 3통을 작성하여 기관장(갑), 연구책임자(을), 참여연구자(병)이 서명 또는 날인하고 ",null,null,null,null,null,null,null,null,null,"징계를 받을 것을 서약한다.",null,null,null,null,null,null,null,null,null,"③ “병”은 관계법규와 학칙을 준수하며, 연구과제에 대한 정보를 누설한 때에는 아래의 관계법규와 학칙에 따라 엄중한 처벌과 "]
[null,"제9조 (기타사항)",null,null,null,null,null,null,null,null,null,"각각 1통씩 보관한다.",null,null,null,null,null,null,null,null,null," 1. 「과학기술기본법」 제11조(국가연구개발사업의 추진)",null,null,null,null,null,null,null,null,null,"징계를 받을 것을 서약한다."]
[null,"① 퇴직금은 근로자퇴직급여보장법에 따라 지급한다.",null,null,null,null,null,null,null,null,null,null,null,null,null,null,null,null,null,null,null," 2. 「국가연구개발혁신법」 제21조(국가연구개발사업 등의 보안)",null,null,null,null,null,null,null,null,null," 1. 「과학기술기본법」 제11조(국가연구개발사업의 추진)"]
[null,"② 본 계약서에 규정되지 않은 사항은 ｢근로기준법｣ 등 근로관계 법령이 정하는 바에 따른다.",null,null,null,null,null,null,null,null,null,"상기 사항에 동의하고 날인합니다.",null,null,null,null,null,null,null,null,null," 3. 「산업기술의 유출방지 및 보호에 관한 법률」 제12조(국가연구개발사업의 보호관리)",null,null,null,null,null,null,null,null,null," 2. 「국가연구개발혁신법」 제21조(국가연구개발사업 등의 보안)"]
[null,"③ 본 계약의 체결을 증명하기 위하여 계약서 3통을 작성하여 기관장(갑), 연구책임자(을), 참여연구자(병)이 서명 또는 날인하고",null,null,null,null,null,null,null,null,null,null,null,null,null,null,null,null,null,null,null," 4. 「서울대학교 연구원 임용 규정」 제6조(해임·해촉) 등 각종 서울대학교 학칙·규정",null,null,null,null,null,null,null,null,null," 3. 「산업기술의 유출방지 및 보호에 관한 법률」 제12조(국가연구개발사업의 보호관리)"]
[null,"각각 1통씩 보관한다.",null,null,null,null,null,null,null,null,null,{"$f":"TODAY()","v":"2023-02-27"},null,null,null,null,null,null,null,null,null,null,null,null,null,null,null,null,null,null,null," 4. 「서울대학교 연구원 임용 규정」 제6조(해임·해촉) 등 각종 서울대학교 학칙·규정"]
[null,"상기 사항에 동의하고 날인합니다.",null,null,null,null,null,null,null,null,null,null,null,null,null,null,null,null,null,null,null,"제7조(개인정보 제공 및 활용 동의) “병”은 아래의 내용을 세심하게 읽고 확인한 후 “갑”의 개인정보 및 고유식별정보의 수집과 "]
[null,null,null,null,null,null,null,null,null,null,null,"(갑)","기관장",null,"서울대학교",{"$f":"O12","v":"○○○○○(기관명)"},null,null,{"$f":"S12","v":"○○○"},"(인)",null,"그 이용, 그리고 제 3자에 대한 제공에 동의하는 경우에 본 계약서의 개인정보 제공, 활용 및 제3자 제공 동의 서명 란에 서명 또는",null,null,null,null,null,null,null,null,null,"제7조(개인정보 제공 및 활용 동의) “병”은 아래의 내용을 세심하게 읽고 확인한 후 “갑”의 개인정보 및 고유식별정보의 수집과 "]
[null,{"$f":"TODAY()","v":"2023-02-27"},null,null,null,null,null,null,null,null,null,"(을)","연구책임자",null,"서울대학교",{"$f":"O14","v":"○○○○○"},null,null,{"$f":"S7","v":"○○○"},"(인)",null,"날인하여야 한다.",null,null,null,null,null,null,null,null,null,"그 이용, 그리고 제 3자에 대한 제공에 동의하는 경우에 본 계약서의 개인정보 제공, 활용 및 제3자 제공 동의 서명 란에 서명 또는"]
[null,null,null,null,null,null,null,null,null,null,null,"(병)","참여연구자",null,"서울대학교",{"$f":"O16","v":"○○○○○(기관명)"},null,null,{"$f":"M8","v":"○○○"},"(인)",null,"① “병”의 개인정보 제공 및 이용에 대한 동의",null,null,null,null,null,null,null,null,null,"날인하여야 한다."]
[null,"(갑)","기관장",null,"서울대학교",{"$f":"E12","v":"○○○○○(기관명)"},null,null,{"$f":"I12","v":"○○○"},"(인)",null,"                     참여연구자의 개인정보 제공, 활용 및 제3자 제공 동의(제7조)에 대한 서명",null,null,null,null,null,null,{"$f":"M8","v":"○○○"},"(인)",null," 1. “갑”은 연구관리 용도로 “병”의 개인정보(고유식별정보 포함)를 보유한다.",null,null,null,null,null,null,null,null,null,"① “병”의 개인정보 제공 및 이용에 대한 동의"]
[null,"(을)","연구책임자",null,"서울대학교",{"$f":"E14","v":"○○○○○"},null,null,{"$f":"I7","v":"○○○"},"(인)",null,null,null,null,null,null,null,null,null,null,null,"   ▪ 필수정보 : 성명, 소속, 직위, 계좌번호, 주민등록번호(고유식별정보), 국적, 전화, 이메일",null,null,null,null,null,null,null,null,null," 1. “갑”은 연구관리 용도로 “병”의 개인정보(고유식별정보 포함)를 보유한다."]
[null,"(병)","참여연구자",null,"서울대학교",{"$f":"E16","v":"○○○○○(기관명)"},null,null,{"$f":"C8","v":"○○○"},"(인)",null,null,null,null,null,null,null,null,null,null,null,"   ▪ 보유목적 : 인건비 및 수당 지급, 세무신고, 경력증명서 발급 등 연구관리 제반사항",null,null,null,null,null,null,null,null,null,"   ▪ 필수정보 : 성명, 소속, 직위, 계좌번호, 주민등록번호(고유식별정보), 국적, 전화, 이메일"]
[null,"                     참여연구자의 개인정보 제공, 활용 및 제3자 제공 동의(제7조)에 대한 서명",null,null,null,null,null,null,{"$f":"C8","v":"○○○"},"(인)",null,null,null,null,null,null,null,null,null,null,null," 2. “갑”이 수집한 “병”의 개인정보는 「서울대학교 연구비 관리 규정」제31조(관계서류의 보존)에 따라 5년간 보관한다.",null,null,null,null,null,null,null,null,null,"   ▪ 보유목적 : 인건비 및 수당 지급, 세무신고, 경력증명서 발급 등 연구관리 제반사항"]
[null,null,null,null,null,null,null,null,null,null,null,null,null,null,null,null,null,null,null,null,null," 3. “병”은 자신의 개인정보(고유식별정보 포함) 수집에 동의하지 않을 수 있으나, 이 경우 인건비 및 수당지급이 제한될 수 있다.",null,null,null,null,null,null,null,null,null," 2. “갑”이 수집한 “병”의 개인정보는 「서울대학교 연구비 관리 규정」제31조(관계서류의 보존)에 따라 5년간 보관한다."]
[null,null,null,null,null,null,null,null,null,null,null,null,null,null,null,null,null,null,null,null,null,"② “병”의 개인정보 제3자 제공에 대한 동의",null,null,null,null,null,null,null,null,null," 3. “병”은 자신의 개인정보(고유식별정보 포함) 수집에 동의하지 않을 수 있으나, 이 경우 인건비 및 수당지급이 제한될 수 있다."]
[null,null,null,null,null,null,null,null,null,null,null,null,null,null,null,null,null,null,null,null,null," 1. “갑”은 원칙적으로 “병”의 개인정보를 제1항의 개인정보의 수집·이용 목적에서 명시한 범위 내에서 처리하며, “병”의 사전 동의",null,null,null,null,null,null,null,null,null,"② “병”의 개인정보 제3자 제공에 대한 동의"]
[null,null,null,null,null,null,null,null,null,null,null,null,null,null,null,null,null,null,null,null,null," 없이는 본래의 범위를 초과하여 처리하거나 제3자에게 제공하지 않는다. 단, 다음의 경우에는 개인정보를 제공할 수 있다.",null,null,null,null,null,null,null,null,null," 1. “갑”은 원칙적으로 “병”의 개인정보를 제1항의 개인정보의 수집·이용 목적에서 명시한 범위 내에서 처리하며, “병”의 사전 동의"]
[null,"※ 연구자가 원소속기관 이외의 기관에 중복하여 과제 참여시 작성",null,null,null,null,null,null,null,null,null,null,null,null,null,null,null,null,null,null,null,"   ▪ “병”이 사전에 제3자 제공 및 공개에 동의한 경우",null,null,null,null,null,null,null,null,null," 없이는 본래의 범위를 초과하여 처리하거나 제3자에게 제공하지 않는다. 단, 다음의 경우에는 개인정보를 제공할 수 있다."]
[null,null,null,null,null,null,null,null,null,null,null,null,null,null,null,null,null,null,null,null,null,"   ▪ 법령 등에 의해 제공이 요구되는 경우",null,null,null,null,null,null,null,null,null,"   ▪ “병”이 사전에 제3자 제공 및 공개에 동의한 경우"]
[null,"연구과제 참여 합의서",null,null,null,null,null,null,null,null,null,null,null,null,null,null,null,null,null,null,null,"   ▪ 서비스의 제공에 관한 계약의 이행을 위하여 필요한 개인정보로서 경제적/기술적인 사유로 통상의 동의를 받는 것이 현저히 ",null,null,null,null,null,null,null,null,null,"   ▪ 법령 등에 의해 제공이 요구되는 경우"]
[null,null,null,null,null,null,null,null,null,null,null,null,null,null,null,null,null,null,null,null,null,"     곤란한 경우",null,null,null,null,null,null,null,null,null,"   ▪ 서비스의 제공에 관한 계약의 이행을 위하여 필요한 개인정보로서 경제적/기술적인 사유로 통상의 동의를 받는 것이 현저히 "]
[null,null,null,null,null,null,null,null,null,null,null,null,null,null,null,null,null,null,null,null,null,"   ▪ 통계작성 및 학술연구 등의 목적을 위하여 필요한 경우로서 특정 개인을 알아 볼 수 없는 형태로 개인정보를 제공하는 경우",null,null,null,null,null,null,null,null,null,"     곤란한 경우"]
[null,"서울대학교 ","○○○○○(기관명1)",null,null,"의 장(이하 \"갑\"이라 함), 갑 소속 연구자의 연구과제 참여기관인 서울대학교",null,null,null,null,null,null,null,null,null,null,null,null,null,null,null,null,null,null,null,null,null,null,null,null,null,"   ▪ 통계작성 및 학술연구 등의 목적을 위하여 필요한 경우로서 특정 개인을 알아 볼 수 없는 형태로 개인정보를 제공하는 경우"]
[null,"○○○○○(기관명2)",null,null,"의 장(이하 \"을\"이라 함), 연구책임자(이하 \"병\"이라 함), 참여연구자(이하 \"정\"이라 함)은 다음과",null,null,null,null,null,null,null,null,null,null,null,null,null,null,null,null,"제8조 (계약해지 및 변경)"]
[null,"같이 연구자의 연구과제 참여에 합의한다.",null,null,null,null,null,null,null,null,null,null,null,null,null,null,null,null,null,null,null,"① “병”이 다음 각 호의 어느 하나에 해당할 경우 “갑”은 서면 통지로 “병”과의 근로계약을 해지할 수 있다. ",null,null,null,null,null,null,null,null,null,"제8조 (계약해지 및 변경)"]
[null,null,null,null,null,null,null,null,null,null,null,null,null,null,null,null,null,null,null,null,null," 1. 본 근로계약을 위반하는 경우",null,null,null,null,null,null,null,null,null,"① “병”이 다음 각 호의 어느 하나에 해당할 경우 “갑”은 서면 통지로 “병”과의 근로계약을 해지할 수 있다. "]
[null,"1. 계약당사자 ",null,null,null,null,null,null,null,null,null,null,null,null,null,null,null,null,null,null,null," 2. 질병, 실종 또는 형사소추 등으로 연구업무 수행이 불가능한 경우",null,null,null,null,null,null,null,null,null," 1. 본 근로계약을 위반하는 경우"]
[null,"갑\n(원 소속기관)","서울대학교 ",null,{"$f":"C108","v":"○○○○○(기관명1)"},null,null,"성명","○○○",null,null,null,null,null,null,null,null,null,null,null,null," 3. 연구업무를 성실히 준수하지 아니하는 경우",null,null,null,null,null,null,null,null,null," 2. 질병, 실종 또는 형사소추 등으로 연구업무 수행이 불가능한 경우"]
[null,null,"주소",null,null,null,null,null,null,null,null,null,null,null,null,null,null,null,null,null,null," 4. 기타 사회적인 물의를 일으키거나 연구자로서의 품위를 손상하여 본교의 명예를 훼손한 경우",null,null,null,null,null,null,null,null,null," 3. 연구업무를 성실히 준수하지 아니하는 경우"]
[null,"을\n(과제참여기관)","서울대학교",null,{"$f":"B109","v":"○○○○○(기관명2)"},null,null,"성명","○○○",null,null,null,null,null,null,null,null,null,null,null,null,"② 연구비 지원기관으로부터 연구비 지원이 중단되거나, 연구비 지원규모가 변경된 경우 “갑”은“병”과의 근로계약을 해지 또는 ",null,null,null,null,null,null,null,null,null," 4. 기타 사회적인 물의를 일으키거나 연구자로서의 품위를 손상하여 본교의 명예를 훼손한 경우"]
[null,null,"주소",null,null,null,null,null,null,null,null,null,null,null,null,null,null,null,null,null,null,"    계약 내용을 일부 변경할 수 있으며 “병”은 이에 따른다. ",null,null,null,null,null,null,null,null,null,"② 연구비 지원기관으로부터 연구비 지원이 중단되거나, 연구비 지원규모가 변경된 경우 “갑”은“병”과의 근로계약을 해지 또는 "]
[null,"병\n(연구책임자)","서울대학교",null,"○○대학 ○○학과 ○교수",null,null,"성명","○○○",null,null,null,null,null,null,null,null,null,null,null,null,"③ 본 계약서에서 정한 연구과제 수행기간 내에 “병”이 추가 연구과제를 수행하게 되는 경우 “갑”은 추가 내용을 포함하여 ",null,null,null,null,null,null,null,null,null,"    계약 내용을 일부 변경할 수 있으며 “병”은 이에 따른다. "]
[null,null,"주소",null,null,null,null,null,null,null,null,null,null,null,null,null,null,null,null,null,null,"    변경계약서를 다시 작성할 수 있다. ",null,null,null,null,null,null,null,null,null,"③ 본 계약서에서 정한 연구과제 수행기간 내에 “병”이 추가 연구과제를 수행하게 되는 경우 “갑”은 추가 내용을 포함하여 "]
[null,"병\n(참여연구자)","서울대학교",null,{"$f":"C108","v":"○○○○○(기관명1)"},null,null,"성명","○○○",null,null,null,null,null,null,null,null,null,null,null,null,null,null,null,null,null,null,null,null,null,null,"    변경계약서를 다시 작성할 수 있다. "]
[null,null,"주소",null,null,null,null,null,null,null,null,null,null,null,null,null,null,null,null,null,null,"제9조 (퇴직금)"]
[null,null,"전화번호",null,"010-123-4567",null,"주민등록번호",0,null,null,null,null,null,null,null,null,null,null,null,null,null,"① 퇴직금은 근로자퇴직급여보장법에 따라 소속 연구기관에서 1년 이상 근무하여야 발생한다. ",null,null,null,null,null,null,null,null,null,"제9조 (퇴직금)"]
[null,"  ","  ",null,"  ",null,null,"  ","  ",null,null,null,null,null,null,null,null,null,null,null,null,"② 퇴직금은 근로자퇴직급여보장법에 따라 지급하며, 산정 시에는 연구 참여기간 및 인건비계상률을 반영하여 계산하고 해당연차 ",null,null,null,null,null,null,null,null,null,"퇴직금은 ｢근로자퇴직급여보장법｣ 제4조 단서에 따라 적용되지 아니한다."]
[null,"연구과제 정보","연구과제명",null,null,null,null,null,null,null,null,null,null,null,null,null,null,null,null,null,null,"    연구기간 종료시점에 퇴직급여 충당금을 적립한다. "]
[null,null,"연구기간",null,null,null,null,null,null,null,null,null,null,null,null,null,null,null,null,null,null,null,null,null,null,null,null,null,null,null,null,"제10조 (기타사항)"]
[null,null,null,null,null,null,null,null,null,null,null,null,null,null,null,null,null,null,null,null,null,"제10조 (기타사항)",null,null,null,null,null,null,null,null,null,"① 본 계약서에 규정되지 않은 사항은 ｢근로기준법｣ 등 근로관계 법령이 정하는 바에 따른다."]
[null,"2. 계약의 목적",null,null,null,null,null,null,null,null,null,null,null,null,null,null,null,null,null,null,null,"① 본 계약서에 규정되지 않은 사항은 ｢근로기준법｣ 등 근로관계 법령이 정하는 바에 따른다.",null,null,null,null,null,null,null,null,null,"② 본 계약의 체결을 증명하기 위하여 계약서 3통을 작성하여 기관장(갑), 연구책임자(을), 연구근접지원인력(병)이 서명 또는 날인하고"]
[null,"◦ “갑”,“을”,“병”,“정”은 본 계약을 통해 “정”의 상기 연구과제 참여와 관련하여 발생하는 인건비, 4대보험, 퇴직금 등 ",null,null,null,null,null,null,null,null,null,null,null,null,null,null,null,null,null,null,null,"② 본 계약의 체결을 증명하기 위하여 계약서 3통을 작성하여 기관장(갑), 연구책임자(을), 연구근접지원인력(병)이 서명 또는 날인하고",null,null,null,null,null,null,null,null,null,"    각각 1통씩 보관한다."]
[null,"    제반사항을 합의한다.",null,null,null,null,null,null,null,null,null,null,null,null,null,null,null,null,null,null,null,"    각각 1통씩 보관한다."]
[null,"3. 연구과제 참여기간",null,null,null,null,null,null,null,null,null,null,null,null,null,null,null,null,null,null,null,null,null,null,null,null,null,null,null,null,null,"본 계약은 위에서 정한 근로계약기간을 한정적인 계약기간으로 설정한 기간한정계약으로써 “병”은 해당 내용을 인지하고, 당사자"]
[null,"◦ “정”의 연구과제 참여기간은 \n",null,null,"yymmdd","부터","yymmdd","까지로 한다.",null,null,null,null,null,null,null,null,null,null,null,null,null,"본 계약은 위에서 정한 근로계약기간을 한정적인 계약기간으로 설정한 기간한정계약으로써 “병”은 해당 내용을 인지하고, 당사자",null,null,null,null,null,null,null,null,null,"간에 자유의사로 체결하였음을 확인하며, 이후 본 계약에 위반되는 어떠한 민·형사상의 이의제기도 하지 않을 것임을 확인하고 "]
[null,"4. 임금 등의 지급",null,null,null,null,null,null,null,null,null,null,null,null,null,null,null,null,null,null,null,"간에 자유의사로 체결하였음을 확인하며, 이후 본 계약에 위반되는 어떠한 민·형사상의 이의제기도 하지 않을 것임을 확인하고 ",null,null,null,null,null,null,null,null,null,"날인합니다."]
[null,"◦ “을”은 “정”에게 연구비에서 급여총액(4대보험과 퇴직급여충당금 등 포함)을 상기 연구과제의 인건비로 계상하여 임금을 ",null,null,null,null,null,null,null,null,null,null,null,null,null,null,null,null,null,null,null,"날인합니다.",null,null,null,null,null,null,null,null,null,{"$f":"TODAY()","v":"2023-02-27"}]
[null,"    지급한다.",null,null,null,null,null,null,null,null,null,null,null,null,null,null,null,null,null,null,null,{"$f":"TODAY()","v":"2023-02-27"}]
[null,"◦ “을”은 “정”의 상기 연구과제에 대한 인건비 계상금액의 변동이 발생할 경우, “갑”에게 관련사실을 지체 없이 통보하여야 하며,",null,null,null,null,null,null,null,null,null,null,null,null,null,null,null,null,null,null,null,null,null,null,null,null,null,null,null,null,null,"(갑)","기관장",null,"서울대학교",{"$f":"AI11","v":"○○○○○(기관명)"},null,null,{"$f":"AM11","v":"○○○"},"(인)"]
[null,"    “을”은 연구수행 기간 내 급여총액의 변동에 따라 발생되는 4대보험(기관부담 포함) 및 퇴직급여충당금의 부족분에 대하여",null,null,null,null,null,null,null,null,null,null,null,null,null,null,null,null,null,null,null,"(갑)","기관장",null,"서울대학교",{"$f":"Y11","v":"○○○○○(기관명)"},null,null,{"$f":"AC11","v":"○○○"},"(인)",null,"(을)","연구책임자",null,"서울대학교",{"$f":"AI13","v":"○○○○○"},null,null,{"$f":"AM7","v":0},"(인)"]
[null,"    납부 책임을 부담한다.",null,null,null,null,null,null,null,null,null,null,null,null,null,null,null,null,null,null,null,"(을)","연구책임자",null,"서울대학교",{"$f":"Y13","v":"○○○○○"},null,null,{"$f":"AC7","v":0},"(인)",null,null,null,null,"※ 다수과제에 참여하는 경우 “을”(연구책임자)을 모두 명시"]
[null,"◦ “을”은 연구과제에서 발생한 4대보험(기관부담 포함) 및 퇴직급여충당금을 연구과제 종료 후 “갑”에게 이관하여야 한다. ",null,null,null,null,null,null,null,null,null,null,null,null,null,null,null,null,null,null,null,null,null,null,"※ 다수과제에 참여하는 경우 “을”(연구책임자)을 모두 명시",null,null,null,null,null,null,"(병)","연구근접지원인력",null,"서울대학교",{"$f":"AI15","v":"○○○○○(기관명)"},null,null,{"$f":"AG8","v":0},"(인)"]
[null,"5. 계약의 변경",null,null,null,null,null,null,null,null,null,null,null,null,null,null,null,null,null,null,null,"(병)","연구근접지원인력",null,"서울대학교",{"$f":"Y15","v":"○○○○○(기관명)"},null,null,{"$f":"W8","v":0},"(인)"]
[null,"◦ “갑”과 “을”은 계약의 내용을 변경하여야 하는 사정이 있는 경우 충분히 협의하여야 하며, 서면 합의를 통해 관련 내용을 ",null,null,null,null,null,null,null,null,null,null,null,null,null,null,null,null,null,null,null,null,null,null,null,null,null,null,null,null,null,"  ※ 연구근접지원인력의 개인정보 제공, 활용 및 제3자 제공 동의(제7조)에 대한 서명",null,null,null,null,null,null,{"$f":"AG8","v":0},"(인)"]
[null,"    변경할 수 있다.  ",null,null,null,null,null,null,null,null,null,null,null,null,null,null,null,null,null,null,null,"  ※ 연구근접지원인력의 개인정보 제공, 활용 및 제3자 제공 동의(제7조)에 대한 서명",null,null,null,null,null,null,{"$f":"W8","v":0},"(인)"]
[null,"6. 손해배상"]
[null,"◦ “갑” 또는 “을”은 본 계약에서 정한 사항을 위반하여 상대방에게 손해를 입힌 경우, 그 손해를 배상하여야 한다."]
[null,"◦ 단, “정”이 갑과 을의 사전 동의 없이 관련 법령, 학내 규정, 연구계획서 등 기타 준수 의무가 있는 사항을 위반하여 연구를 "]
[null,"    수행함으로써 갑과 을에 손해를 입힌 경우, “정”은 그 손해를 배상하여야 한다."]
[null,"7. 계약의 효력",null,null,null,null,null,null,null,null,null,null,null,null,null,null,null,null,null,null,null,"[계약내용 고지 확인서] 단일‧다년도과제참여용"]
[null,"◦ 본 계약은 갑, 을, 병, 정이 기명 날인한 날로부터 유효하다."]
[null,"◦ 위와 같이 계약을 체결하고 계약서 4부를 작성, 기명날인 한 후 갑, 을, 병, 정이 각각 1부씩 보관한다. "]
[null,"8. 분쟁의 해결",null,null,null,null,null,null,null,null,null,null,null,null,null,null,null,null,null,null,null,"  "]
[null,"◦ 본 계약과 관련하여 분쟁이 발생한 경우 갑, 을, 병, 정은 일차적으로 협의를 통해 원만한 해결을 도모하여야 한다.",null,null,null,null,null,null,null,null,null,null,null,null,null,null,null,null,null,null,null,"계약내용 고지 확인서"]
[null,null,null,null,null,null,null,null,null,null,null,null,null,null,null,null,null,null,null,null,null,"(다년도 과제 수행 시)"]
[null,{"$f":"TODAY()","v":"2023-02-27"}]
[null,null,null,null,null,null,null,null,null,null,null,null,null,null,null,null,null,null,null,null,null,"  "]
[null,"(갑)","기관장",null,"서울대학교",{"$f":"C108","v":"○○○○○(기관명1)"},null,null,{"$f":"I113","v":"○○○"},"(인)",null,null,null,null,null,null,null,null,null,null,null,"  본인은 서울대학교의 (                                과제명                                )과제 수행 지원을 위한 연구근접지원인력으로"]
[null,"(을)","기관장",null,"서울대학교",{"$f":"B109","v":"○○○○○(기관명2)"},null,null,{"$f":"I115","v":"○○○"},"(인)",null,null,null,null,null,null,null,null,null,null,null,"고용계약을 체결함에 있어, 아래의 내용에 대하여 계약당시 충분히 설명을 듣고 동의하여 계약을 체결하였습니다."]
[null,"(병)","연구책임자",null,"서울대학교",{"$f":"E117","v":"○○대학 ○○학과 ○교수"},null,null,{"$f":"I117","v":"○○○"},"(인)"]
[null,"(정)","참여연구자",null,null,null,null,null,{"$f":"I119","v":"○○○"},"(인)"]
[null,null,null,null,null,null,null,null,null,null,null,null,null,null,null,null,null,null,null,null,null,"- 고지내용 및 동의사항 - "]
[]
[null,null,null,null,null,null,null,null,null,null,null,null,null,null,null,null,null,null,null,null,null,"  "]
[null,null,null,null,null,null,null,null,null,null,null,null,null,null,null,null,null,null,null,null,null," 가. 계약의 목적 "]
[null,null,null,null,null,null,null,null,null,null,null,null,null,null,null,null,null,null,null,null,null,"  - (                                  과제명                               )연구과제 수행 지원을 위해 전속적으로 고용되어,"]
[null,null,null,null,null,null,null,null,null,null,null,null,null,null,null,null,null,null,null,null,null,"    해당 연구과제 지원업무(회계, 정산 업무) 수행을 위함"]
[]
[null,null,null,null,null,null,null,null,null,null,null,null,null,null,null,null,null,null,null,null,null," 나. 계약 종료 "]
[null,null,null,null,null,null,null,null,null,null,null,null,null,null,null,null,null,null,null,null,null,"  - 연구과제 종료 시 고용계약이 종료되며, 근로계약 기간 이내라도 연구과제가 종료(완료)되는 경우 고용계약이"]
[null,null,null,null,null,null,null,null,null,null,null,null,null,null,null,null,null,null,null,null,null,"    종료될 수 있음"]
[null,null,null,null,null,null,null,null,null,null,null,null,null,null,null,null,null,null,null,null,null,"    ※ 기간제법 제4조제1항 “사업의 완료에 필요한 기간을 정한 경우”"]
[]
[null,null,null,null,null,null,null,null,null,null,null,null,null,null,null,null,null,null,null,null,null," 다. 연봉은 최초계약 후 연 단위 조정, 조정 시 내역을 통보"]
[]
[null,null,null,null,null,null,null,null,null,null,null,null,null,null,null,null,null,null,null,null,null," 라. 업무수행 과정에서 인지한 정보에 대하여 비밀엄수 의무 확인 및 계약종료 후 누설하거나 공개하지 아니하겠음."]
[null,null,null,null,null,null,null,null,null,null,null,null,null,null,null,null,null,null,null,null,null,"  "]
[null,null,null,null,null,null,null,null,null,null,null,null,null,null,null,null,null,null,null,null,null," 본인은 상기 내용에 대하여 계약당시 충분히 고지 받고 고용계약을 체결하였으며, "]
[null,null,null,null,null,null,null,null,null,null,null,null,null,null,null,null,null,null,null,null,null,"이와 관련하여 향후 이의제기 및 민·형사·기타 일체의 법률적 쟁송 등을 하지 아니함을 ( 확약 ) 함."]
[]
[]
[null,null,null,null,null,null,null,null,null,null,null,null,null,null,null,null,null,null,null,null,null,"2020.   .   ."]
[]
[null,null,null,null,null,null,null,null,null,null,null,null,null,null,null,null,null,null,null,null,null,"  "]
[null,null,null,null,null,null,null,null,null,null,null,null,null,null,null,null,null,null,null,null,null,"생년월일     .      .                       서명                             (인)    "]
[]
[]
[]
[]
[]
[]
[null,null,null,null,null,null,null,null,null,null,null,null,null,null,null,null,null,null,null,null,null,"[계약내용 고지 확인서] 복수과제참여용"]
[]
[null,null,null,null,null,null,null,null,null,null,null,null,null,null,null,null,null,null,null,null,null,"  "]
[null,null,null,null,null,null,null,null,null,null,null,null,null,null,null,null,null,null,null,null,null,"계약내용 고지 확인서"]
[null,null,null,null,null,null,null,null,null,null,null,null,null,null,null,null,null,null,null,null,null,"(복수 과제 참여 시)"]
[]
[null,null,null,null,null,null,null,null,null,null,null,null,null,null,null,null,null,null,null,null,null,"  "]
[null,null,null,null,null,null,null,null,null,null,null,null,null,null,null,null,null,null,null,null,null,"  본인은 서울대학교의 (              과제명1, 과제명2.......                             )과제 수행 지원을 위한 연구근접지원인력으로"]
[null,null,null,null,null,null,null,null,null,null,null,null,null,null,null,null,null,null,null,null,null,"고용계약을 체결함에 있어, 아래의 내용에 대하여 계약당시 충분히 설명을 듣고 동의하여 계약을 체결하였습니다."]
[]
[]
[null,null,null,null,null,null,null,null,null,null,null,null,null,null,null,null,null,null,null,null,null,"- 고지내용 및 동의사항 - "]
[]
[null,null,null,null,null,null,null,null,null,null,null,null,null,null,null,null,null,null,null,null,null,"  "]
[null,null,null,null,null,null,null,null,null,null,null,null,null,null,null,null,null,null,null,null,null," 가. 계약 종료 "]
[null,null,null,null,null,null,null,null,null,null,null,null,null,null,null,null,null,null,null,null,null,"  - 고용계약서에 명시된 계약기간은 20  .  .  . ~ 20  .  .  .이며, 계약종료일 도래 시, 별도 통보 없이 고용계약은 종료됨"]
[null,null,null,null,null,null,null,null,null,null,null,null,null,null,null,null,null,null,null,null,null,"  - 계약기간 이내라도 담당 연구과제가 모두 종료(완료)되는 경우 고용계약이 종료될 수 있음"]
[null,null,null,null,null,null,null,null,null,null,null,null,null,null,null,null,null,null,null,null,null,"     ※ 과제기간 연장에 따라 고용계약을 연장하는 경우에도 총 계약기간은 2년을 초과할 수 없음"]
[]
[null,null,null,null,null,null,null,null,null,null,null,null,null,null,null,null,null,null,null,null,null," 나. 연봉은 최초계약 후 연 단위 조정, 조정 시 내역을 통보"]
[]
[null,null,null,null,null,null,null,null,null,null,null,null,null,null,null,null,null,null,null,null,null," 다. 업무수행 과정에서 인지한 정보에 대하여 비밀엄수 의무 확인 및 계약종료 후 누설하거나 공개하지 아니하겠음."]
[null,null,null,null,null,null,null,null,null,null,null,null,null,null,null,null,null,null,null,null,null,"  "]
[null,null,null,null,null,null,null,null,null,null,null,null,null,null,null,null,null,null,null,null,null," 본인은 상기 내용에 대하여 계약당시 충분히 고지 받고 고용계약을 체결하였으며, "]
[null,null,null,null,null,null,null,null,null,null,null,null,null,null,null,null,null,null,null,null,null,"이와 관련하여 향후 이의제기 및 민·형사·기타 일체의 법률적 쟁송 등을 하지 아니함을 ( 확약 ) 함."]
[]
[]
[null,null,null,null,null,null,null,null,null,null,null,null,null,null,null,null,null,null,null,null,null,"2020.   .   ."]
[]
[null,null,null,null,null,null,null,null,null,null,null,null,null,null,null,null,null,null,null,null,null,"  "]
[null,null,null,null,null,null,null,null,null,null,null,null,null,null,null,null,null,null,null,null,null,"생년월일     .      .                       서명                             (인)    "]

{"sheet":"2-1","index":2,"n_rows":32,"n_cols":34,"rows_kept":32,"cut":false,"hidden":false,"merged":[[25,11,25,15],[28,10,28,11],[28,12,28,15],[21,26,25,32],[27,26,29,32],[24,11,24,15],[23,1,23,15],[22,12,22,15],[5,30,6,30],[5,31,6,31],[5,32,6,32],[5,27,6,28],[5,29,6,29],[14,26,14,32],[26,26,26,32],[20,26,20,32],[7,27,7,28],[15,26,15,27],[15,28,15,32],[16,26,16,27],[16,28,16,32],[17,26,19,32],[3,1,3,15],[3,17,3,23],[5,17,6,17],[5,19,5,23],[5,26,6,26],[4,1,4,15],[5,9,5,11],[5,12,5,15],[6,19,6,23],[5,1,5,3],[5,4,5,8],[3,26,4,32],[6,1,6,3],[6,4,6,8],[6,9,6,11],[6,12,6,15],[13,1,13,3],[13,4,13,15],[7,1,7,15],[9,17,9,23],[10,26,13,32],[8,18,8,19],[8,21,8,23],[7,18,7,23],[10,17,12,17],[10,18,12,23],[12,1,12,3],[12,4,12,8],[12,9,12,10],[12,11,12,15],[17,17,17,23],[13,18,16,23],[21,2,21,5],[13,17,16,17],[20,10,21,10],[20,11,21,12],[20,13,21,14],[20,15,21,15],[20,6,21,8],[20,2,20,5],[19,1,19,5],[19,11,19,12],[14,1,14,3],[14,4,14,15],[15,1,15,15],[17,1,18,5],[16,13,16,15],[31,1,31,15],[27,1,27,15],[30,17,30,23],[26,1,26,15],[29,12,29,15],[16,1,16,5],[22,1,22,5],[20,9,21,9],[19,6,19,8],[22,6,22,8],[17,6,17,8],[17,9,17,15],[18,6,18,8],[18,9,18,15],[19,13,19,14],[30,26,30,32],[29,1,29,9],[29,10,29,11],[8,1,8,15],[9,1,11,3],[9,4,9,15],[10,4,10,15],[11,4,11,15],[25,1,25,3],[25,4,25,8],[25,9,25,10],[30,1,30,15],[24,1,24,3],[24,4,24,8],[24,9,24,10],[22,9,22,11]]}
[]
[]
[null,"■ 서울대학교 산학협력단 연구물품 중앙관리 지침 [별지 제1호 서식]",null,null,null,null,null,null,null,null,null,null,null,null,null,null,null,"■ 서울대학교 산학협력단 연구물품 중앙관리 지침 [별지 제2호 서식]",null,null,null,null,null,null,null,null,"■ 서울대학교 산학협력단 연구물품 중앙관리 지침 [별지 제3호 서식]"]
[null,"물품구매 의뢰서",null,null,null,null,null,null,null,null,null,null,null,null,null,null,null,"용도 설명서",null,null,null,null,null,null,null,null,"구매 규격서\nCOMMODITY DESCRIPTION"]
[null,"  <근거서류>  1. 용도설명서,  2. 국문 및 영문 규격서,  3. 연구계획서"]
[null,"과제번호",null,null,"1.연구비 과제번호 기입\n2.간접비(명시만) 1,2중 택1",null,null,null,null,"연구책임자",null,null,null,null,null,null,null,"1. 품         명","(영문)",{"$f":"C21","v":0},null,null,null,null,null,null,"품목번호\nItem No.","관세분류번호\nHSK No.",null,"정부물품분류번호(8자리)\nKorean Government Commodity Classification Code(eight-digit)","품 명\nDescription","단위\nUnit","수량\nQ'ty","관세분류번호 찾기"]
[null,"연구과제명",null,null,null,null,null,null,null,"지원기관",null,null,null,null,null,null,null,null,"(국문)",{"$f":"C22","v":0},null,null,null,null,null,null,null,null,null,null,null,null,null,"정부물품분류번호 찾기"]
[null,"  ",null,null,null,null,null,null,null,null,null,null,null,null,null,null,null,"2. 모   델   명",{"$f":"G21","v":0},null,null,null,null,null,null,null,null,"(9011.80.4000)"]
[null,"□ 구매 물품 정보",null,null,null,null,null,null,null,null,null,null,null,null,null,null,null,"3. 제   조   사",{"$f":"G23","v":0},null,"4. 제 작 국 가",{"$f":"M23","v":0}]
[null,"구매방법",null,null,null,null,null,null,null,null,null,null,null,null,null,null,null,"5. 규격(성능 및 사양)",null,null,null,null,null,null,null,null,"Ⅰ. 용도(End-user's Use)"]
[null,null,null,null,null,null,null,null,null,null,null,null,null,null,null,null,null,"Ⅰ. 일반사양 :",null,null,null,null,null,null,null,null,"   어떤 업무에 사용되는지 상세히 기술"]
[]
[null,"내.외자구분",null,null,null,null,null,null,null,"구매종류"]
[null,"구매구분",null,null,null,null,null,null,null,null,null,null,null,null,null,null,null,"Ⅱ. 성      능 :"]
[null,"자산등재여부",null,null,null,null,null,null,null,null,null,null,null,null,null,null,null,null,null,null,null,null,null,null,null,null,"Ⅱ. 장비의 구성(Configurations of Goods)"]
[null,"※ 해당란에 \"√\" 반드시 표기",null,null,null,null,null,null,null,null,null,null,null,null,null,null,null,null,null,null,null,null,null,null,null,null,"1. 본체(Main body) :"]
[null,"□ 물품 구매(청구) 내역",null,null,null,null,null,null,null,null,null,null,null,"목록정보시스템 바로가기",null,null,null,null,null,null,null,null,null,null,null,null,"2. Accessories :"]
[null,"품목분류\n(상품정보시스템사이트 참고하여 기재)",null,null,null,null,"물품분류번호\n(세부품명번호) ",null,null,"물품분류명\n(세부품명)",null,null,null,null,null,null,null,"6. 사용 용도설명",null,null,null,null,null,null,null,null,"① \n②\n③\n④\n⑤\n⑥"]
[]
[null,"물품명",null,null,null,null,"모델명",null,null,"수량","단위","단가\n(부가세포함)",null,"금 액\n(부가세포함)",null,"비고"]
[null,"(영문)",null,null,null,null,null,null,null,null,null,null,null,null,null,null,null,null,null,null,null,null,null,null,null,null,"Ⅲ. 성능 및 규격(Performance and Specification)"]
[null,"(국문)",null,null,null,null,null,null,null,null,null,null,null,null,null,null,null,null,null,null,null,null,null,null,null,null,"   특정 모델명이나 특정 방식(Type)은 기재 불가, 주요 성능이나 규격위주로 기재\n1.\n2.\n3.\n4.\n5.\n6.\n7."]
[null,"제조사",null,null,null,null,null,null,null,"제작국가"]
[null,"□ 운용부서"]
[null,"담당자",null,null,null,null,null,null,null,"담당자 연락처"]
[null,"설치장소",null,null,"000대학 000동 000호",null,null,null,null,"담당자 이메일 주소"]
[null,null,null,null,null,null,null,null,null,null,null,null,null,null,null,null,null,null,null,null,null,null,null,null,null,null,"Ⅳ. 기타 조건(Remarks)"]
[null,{"$f":"TODAY()","v":"2023-02-27"},null,null,null,null,null,null,null,null,null,null,null,null,null,null,null,null,null,null,null,null,null,null,null,null,"   설치조건, 보증조건, 훈련 조건, 납기 등\n1.\n2.\n3."]
[null,"  ",null,null,null,null,null,null,null,null,"연구책임자",null,"(인)"]
[null,"  ",null,null,null,null,null,null,null,null,"관리기관장",null,"(인)"]
[null,"서울대학교 산학협력단"]
[null,"  "]

{"sheet":"2-2","index":3,"n_rows":31,"n_cols":18,"rows_kept":31,"cut":false,"hidden":false,"merged":[[30,11,30,19],[18,11,19,19],[27,7,27,9],[28,7,28,9],[27,17,27,19],[28,17,28,19],[30,1,30,9],[20,11,20,19],[17,1,19,9],[10,12,10,15],[12,12,12,15],[8,7,8,9],[24,11,24,19],[22,1,22,3],[22,4,22,5],[22,7,22,9],[24,1,24,9],[15,11,16,19],[0,3,0,6],[22,11,22,13],[22,14,22,15],[22,17,22,19],[14,11,14,19],[16,1,16,9],[17,11,17,19],[9,2,9,9],[9,12,9,19],[10,1,10,9],[11,1,15,9],[11,12,11,19],[13,12,13,19],[8,2,8,5],[12,17,12,19],[10,17,10,19],[6,1,6,9],[25,1,25,9],[21,11,21,13],[21,14,21,15],[21,17,21,19],[20,1,20,9],[21,1,21,3],[21,4,21,5],[21,7,21,9],[6,12,6,19],[7,11,7,19],[7,2,7,5],[7,7,7,9],[8,12,8,15],[8,17,8,19],[25,11,25,19],[2,1,2,9],[2,11,2,19],[3,12,3,19],[4,2,4,9],[5,2,5,9],[3,1,3,9],[4,12,4,19],[5,12,5,19]]}
[]
[null,"■ 서울대학교 산학협력단 연구물품 중앙관리 지침 [별지 제4호 서식]",null,null,null,null,null,null,null,null,null,"■ 서울대학교 산학협력단 연구물품 중앙관리 지침 [별지 제5호 서식]"]
[null,"수의계약 사유서(내자구매)",null,null,null,null,null,null,null,null,null,"수의계약 사유서(외자구매)"]
[]
[null,"과제번호",null,null,null,null,null,null,null,null,null,"과제번호"]
[null,"연구과제명",null,null,null,null,null,null,null,null,null,"연구과제명"]
[null,"수의계약 내용",null,null,null,null,null,null,null,null,null,"물품명"]
[null,"업체명",null,null,null,null,"업체연락처",null,null,null,null,"계약대상자 주소"]
[null,"물품명",null,null,null,null,"모델명 및 규격",null,null,null,null,"국내대리점(회사명)",null,null,null,null,"전화/Fax"]
[null,"주   소",null,null,null,null,null,null,null,null,null,"주소"]
[null,"1. 사유",null,null,null,null,null,null,null,null,null,"공급자(회사명)",null,null,null,null,"전화/Fax"]
[null,"  상세히 기재하여 주시기 바랍니다.",null,null,null,null,null,null,null,null,null,"주소"]
[null,null,null,null,null,null,null,null,null,null,null,"제작자(회사명)",null,null,null,null,"전화/Fax"]
[null,null,null,null,null,null,null,null,null,null,null,"주소"]
[null,null,null,null,null,null,null,null,null,null,null,"1. 사유"]
[null,null,null,null,null,null,null,null,null,null,null,"  상세히 기재하여 주시기 바랍니다."]
[null,"2. 관련 법규"]
[null,null,null,null,null,null,null,null,null,null,null,"2. 관련 법규"]
[]
[]
[null,"3. 기 보유장비 현황",null,null,null,null,null,null,null,null,null,"3. 기 보유장비 현황"]
[null,"장비명",null,null,"구입연도",null,"보유대수","자산번호",null,null,null,"장비명",null,null,"구입연도",null,"보유대수","자산번호"]
[]
[]
[null,"위와 같이 수의계약을 요청하오니 처리하여 주시기 바랍니다.",null,null,null,null,null,null,null,null,null,"위와 같이 수의계약을 요청하오니 처리하여 주시기 바랍니다."]
[null,{"$f":"TODAY()","v":"2023-02-27"},null,null,null,null,null,null,null,null,null,{"$f":"TODAY()","v":"2023-02-27"}]
[]
[null,null,null,null,null,null,"연구책임자 : ","(인)",null,null,null,null,null,null,null,"연구책임자 : ",null,"(인)"]
[null,null,null,null,null,null,"관리기관장 : ","(인)",null,null,null,null,null,null,null,"관리기관장 : ",null,"(인)"]
[]
[null,"서울대학교 산학협력단",null,null,null,null,null,null,null,null,null,"서울대학교 산학협력단"]

{"sheet":"3","index":4,"n_rows":42,"n_cols":32,"rows_kept":42,"cut":false,"hidden":false,"merged":[[26,14,26,15],[27,14,27,15],[28,14,28,15],[29,14,29,15],[32,18,36,18],[5,2,5,4],[5,5,5,6],[5,7,5,12],[5,21,5,23],[7,21,7,23],[10,2,10,12],[10,21,10,31],[11,2,11,12],[11,21,11,31],[10,16,11,16],[10,17,11,17],[10,18,11,18],[10,14,11,14],[10,15,11,15],[8,18,9,18],[12,21,12,25],[14,2,14,3],[14,7,14,8],[14,9,14,11],[5,24,5,25],[5,26,5,31],[2,1,2,12],[2,20,2,31],[4,2,4,4],[4,5,4,6],[4,7,4,12],[4,14,4,18],[4,21,4,23],[4,24,4,25],[4,26,4,31],[7,24,7,25],[7,26,7,31],[8,3,8,4],[8,5,8,6],[8,22,8,23],[8,24,8,25],[7,2,7,4],[7,5,7,6],[7,7,7,8],[7,9,7,10],[7,11,7,12],[8,14,9,14],[8,15,9,15],[8,16,9,16],[8,17,9,17],[6,14,7,14],[9,29,9,30],[9,21,9,22],[9,24,9,25],[9,26,9,28],[9,2,9,3],[9,5,9,6],[9,7,9,9],[9,10,9,11],[13,26,13,27],[13,28,13,30],[14,26,14,27],[14,28,14,30],[14,21,14,22],[15,2,17,3],[15,4,16,5],[15,6,15,11],[15,12,16,12],[16,16,16,18],[15,21,17,22],[15,23,16,24],[15,25,15,30],[17,4,17,5],[17,7,17,8],[17,9,17,10],[17,23,17,24],[17,26,17,27],[17,28,17,29],[15,31,16,31],[16,7,16,8],[16,9,16,10],[17,14,23,14],[17,15,23,15],[17,16,23,18],[16,26,16,27],[16,28,16,29],[18,1,18,12],[18,20,18,31],[19,1,19,12],[19,20,19,31],[20,20,26,31],[12,1,17,1],[12,2,12,6],[12,7,12,12],[12,20,17,20],[12,14,13,18],[12,26,12,31],[13,2,13,3],[13,7,13,8],[13,9,13,11],[14,14,14,18],[13,21,13,22],[30,1,30,12],[30,20,34,31],[31,1,32,12],[34,14,34,15],[34,16,34,17],[35,14,35,15],[35,16,35,17],[27,20,27,27],[28,20,28,27],[31,14,31,15],[32,14,32,15],[33,14,33,15],[31,16,31,17],[32,16,32,17],[33,16,33,17],[29,1,29,12],[29,20,29,31],[37,20,37,31],[41,1,41,12],[41,20,41,31],[36,14,36,15],[36,16,36,17],[35,20,35,26],[36,1,36,12],[37,14,37,15],[37,16,37,17],[37,1,37,12],[38,14,38,15],[38,16,38,17],[39,28,39,30],[39,9,39,11]]}
[]
[null,"[국문]",null,null,null,null,null,null,null,null,null,null,null,null,null,null,null,null,null,null,"[영문]"]
[null,"전문가활용비 사용내역서",null,null,null,null,null,null,null,null,null,null,null,null,null,null,null,null,null,null,"Request for Expert expenses"]
[]
[null,"SRnD 과제번호",null,null,null,"연구책임자",null,null,null,null,null,null,null,null,"■ 서울대학교 산학협력연구 연구비 산정기준 [표4], [표5], [표7], [표8]",null,null,null,null,null,"SRnD No.",null,null,null,"Principal Investigator"]
[null,"연구과제명",null,null,null,"지원기관",null,null,null,null,null,null,null,null,"* 회의수당.원고료.강사료. 자문료 정액표",null,null,null,"(단위: 원)",null,"Project Title",null,null,null,"Funding Institution"]
[null,null,null,null,null,null,null,null,null,null,null,null,null,null,"구 분","회의수당","원고료","강사료","자문료 등"]
[null,"구분","자문료",null,null,"대면/비대면",null,"대면",null,"구분",null,"내국인",null,null,null,"(1회/3시간이내)","(A4 1장당)","(1시간 당)","(1시간 당)",null,"Type","Lecture",null,null,"Contact/Untact"]
[null,"기간","활용일자","yymmdd",null,"활용시간",null,"10:00:00","~","11:00:00","=",{"$f":"J9-H9","v":"01:00:00"},"시간",null,"연구책임자급","250,000 이하","100,000 이하","1,000,000 이하","150,000 이하",null,"Period","Date",null,null,"Time",null,null,"~",null,"=",{"$f":"AC9-AA9","v":"00:00:00"},"hours"]
[null,"시간/회당/장",1,null,"회","직급(직위)",null,"연구책임자급",null,null,"장소",null,null,null,null,null,null,null,null,null,"Unit",null,null,"hour(s)","Position",null,"Superior(Senior)",null,null,"Place"]
[null,"제목",null,null,null,null,null,null,null,null,null,null,null,null,"연구자급","200,000 이하","100,000 이하","800,000 이하","100,000 이하",null,"Title"]
[null,"목적(활용내용)",null,null,null,null,null,null,null,null,null,null,null,null,null,null,null,null,null,null,"Contents"]
[null,"지급내역","인적사항",null,null,null,null,"계좌이체정보",null,null,null,null,null,null,"※ 회의수당은 3시간을 초과할 경우 30만원까지 지급가능\n※ 외부소속(기업 및 정부출연기관 등)인 자의 경우 직위 및 업무 중요도를 고려하여 적용\n※ 「부정청탁 및 금품 등 수수의 금지에 관한 법률」 제2조 제2호 가목 및 나목에 해당하는 \n   공무원, 공직유관단체 및 기관의 장과 그 임직원 등에 대한 강사료는 동 법률 및 그 시행령을 따름",null,null,null,null,null,"Payment","Personal Information",null,null,null,null,"Recipient's Bank"]
[null,null,"이름",null,"소속","주민등록번호","이메일주소","은행명",null,"계좌번호",null,null,"예금주",null,null,null,null,null,null,null,null,"Name",null,"Institution\n(Dept.)","Passport No,","E-mail","Bank Name",null,"A/C No.",null,null,"Recipient"]
[]
[null,null,"(수령인 서명)",null,"활용비",null,"출장경비",null,null,null,null,null,"총액",null,"*  번역료 정액표",null,null,null,"(단위: 원)",null,null,"(Signature)",null,"Honorarium",null,"Travel Expenses",null,null,null,null,null,"Total"]
[null,null,null,null,null,null,"항공료","교통료",null,"체재비",null,"숙박비",null,null,"외국어 → 한국어","한국어 → 외국어","비고",null,null,null,null,null,null,null,null,"Airfare","Transportation",null,"Per diem",null,"Accomodations"]
[null,null,null,null,0,null,0,0,null,0,null,0,{"$f":"SUM(E18:L18)","v":0},null,"70,000 이하","100,000 이하","­번역료는 번역결과물(output)를 기준으로 산정\n­한국어, 일어, 중국어 띄어쓰기 포함 800자, \n  그 외 외국어 230words 기준\n­외국어→외국어의 번역일 경우 최대 해당 외국어→한국어와 \n  한국어→외국어의 단가를 합한 금액 이하로 책정",null,null,null,null,null,null,null,null,null,null,null,null,null,{"$f":"SUM(Y18:AC18)","v":0},{"$f":"X15+AE18","v":0}]
[]
[null,"[ 개인정보 수집 및 이용 동의 ]",null,null,null,null,null,null,null,null,null,null,null,null,null,null,null,null,null,null,"[ Personal Information Collection and Usage Agreement ]"]
[null,"▶ 서울대학교 산학협력단에서는 연구관리 용도로 개인정보(고유식별정보 포함)를 보유하고 있습니다.",null,null,null,null,null,null,null,null,null,null,null,null,null,null,null,null,null,null,"▶ The SNU R&DB Foundation retains personal information(including identifying information) for research management purposes.\n  ▪ Required information : name, affiliation, position, account number, personal identification number, nationality, phone number, E-mail.\n  ▪ Purpose of retention : research management related affairs including payment of the personnel expenses and incentive, tax affairs report, career certificate issuance.\n▶ The collected personal information is retained in accordance with Article 31(Preservation of Related Documents) of the Seoul National University\n    Research Funds Management Regulation.\n▶ You may not agree to the collection of personal information(including identifying information), which can result in the restriction of payment of\n    personnel expenses and allowances."]
[null,"  ▪ 필수정보 : 성명, 소속, 직위, 계좌번호, 주민등록번호(고유식별정보), 국적, 전화, 이메일"]
[null,"  ▪ 보유목적 : 인건비 및 수당 지급, 세무신고, 경력증명서 발급 등 연구관리 제반사항"]
[null,"▶ 수집한 개인정보는「서울대학교 연구비관리 규정」 제31조(관계서류의 보존)에 따라 5년간 보관합니다."]
[null,"▶ 개인정보(고유식별정보 포함) 수집에 동의하지 않을 수 있으나, 이 경우 인건비 및 수당지급이 제한될 수 있습니다.",null,null,null,null,null,null,null,null,null,null,null,null," ※영어, 일어, 중국어, 불어, 독어, 스페인어, 러시아어를 제외한 특수어는 별도의 기준 적용가능"]
[null,null,null,null,null,null,null,null,null,null,null,null,null,null,"* 통역료 정액표",null,null,null,"(단위: 원)"]
[null,"○ 개인정보 수집 및 이용에 동의하십니까?",null,null,null,null,"동의함",null,null,"동의하지 않음",null,null,null,null,"언어구분",null,"2시간까지","6시간까지","6시간 초과 시"]
[null,"○ 고유식별정보 수집 및 이용에 동의하십니까?",null,null,null,null,"동의함",null,null,"동의하지 않음",null,null,null,null,"영어, 아랍어, 독일어",null,"500,000 이하","700,000 이하","시간당 100,000",null,"○ Do you agree with the collection of your personal information and its utilization?",null,null,null,null,null,null,null,"Agree",null,"Disagree"]
[null,null,null,null,null,null,null,null,null,null,null,null,null,null,"일어, 중국어",null,"500,000 이하","600,000 이하","시간당 100,000",null,"○ Do you agree with the collection of your identifying information and its utilization?",null,null,null,null,null,null,null,"Agree",null,"Disagree"]
[null,"[ 개인정보의 제3자 제공 동의 ]",null,null,null,null,null,null,null,null,null,null,null,null,"프랑스어, 스페인어, 러시아어 등",null,"500,000 이하","600,000 이하","시간당 100,000",null,"[ Provision Agreement of Personal Information to a Third Party ]"]
[null,"▶ 서울대학교 산학협력단은 원칙적으로 이용자의 개인정보를 [개인정보의 수집 및 이용 동의]  보유목적에서 명시한 범위 내에서 처리하며, 이용자의 \n    사전 동의 없이는 본래의 범위를 초과하여 처리하거나 제3자에게 제공하지 않습니다. 다만, 다음의 경우에는 개인정보를 제3자에게 제공할 수 있습니다.",null,null,null,null,null,null,null,null,null,null,null,null,"* 속기료 정액표",null,null,null,"(단위: 원)",null,"▶ The SNU R&DB Foundation handles the personal information of the user within the scope specified in the purpose of retention of the Personal\n    Information Collection and Usage Agreement, and personal information is not handled beyond the specified scope or provided to a third party\n    without prior consent of the user. However, for the following cases, personal information may be provided to a third party.\n    ▪ The user have agreed to the provision of information to a third party beforehand.\n    ▪ The provision is required by legislation.\n    ▪ Receiving an agreement is significantly difficult due to economical/technical reasons, during the fulfillment of a contract on the provision of\n       services.\n    ▪ The provision of information is required anonymously, during the purpose of producing SNU statistics or academic research."]
[null,"  ▪ 이용자가 사전에 제3자 제공 및 공개에 동의한 경우\n  ▪ 법령 등에 의해 제공이 요구되는 경우\n  ▪ 서비스의 제공에 관한 계약의 이행을 위하여 필요한 개인정보로서 경제적/기술적인 사유로 통상의 동의를 받는 것이 현저히 곤란한 경우\n  ▪ 통계작성 및 학술연구 등의 목적을 위해 필요한 경우로, 특정 개인을 알아볼 수 없는 형태로 개인정보를 제공하는 경우",null,null,null,null,null,null,null,null,null,null,null,null,"구분",null,"단가",null,"비고"]
[null,null,null,null,null,null,null,null,null,null,null,null,null,null,"속기기본",null,"시간당 300,000 이하",null,"1급 속기사 기준"]
[null,null,null,null,null,null,null,null,null,null,null,null,null,null,"녹음재생",null,"시간당 350,000 이하"]
[null,"○ 개인정보의 제3자 제공에 동의하십니까?",null,null,null,null,"동의함",null,null,"동의하지 않음",null,null,null,null,"전문분야",null,"시간당 350,000 이하"]
[null,null,null,null,null,null,null,null,null,null,null,null,null,null,"외국어",null,"시간당 400,000 이하",null,null,null,"○ Do you agree with the provision of your personal information to a third party?",null,null,null,null,null,null,null,"Agree",null,"Disagree"]
[null,"상기와 같이 연구과제 수행과 관련하여 전문가활용비를 청구합니다.",null,null,null,null,null,null,null,null,null,null,null,null,"요점",null,"시간당 200,000 이하"]
[null,{"$f":"TODAY()","v":"2023-02-27"},null,null,null,null,null,null,null,null,null,null,null,null,null,null,null,null,null,null,{"$f":"TODAY()","v":"2023-02-27"}]
[]
[null,null,null,null,null,null,null,"연구책임자",null,"(인)",null,null,null,null,null,null,null,null,null,null,null,null,null,null,null,null,"P.I.",null,"(Signiture)"]
[]
[null,"서울대학교 산학협력단",null,null,null,null,null,null,null,null,null,null,null,null,null,null,null,null,null,null,"SNU R&DB Foundation"]

{"sheet":"4","index":5,"n_rows":23,"n_cols":12,"rows_kept":23,"cut":false,"hidden":false,"merged":[[6,1,6,2],[6,3,6,5],[6,6,6,7],[6,8,6,11],[3,1,3,11],[5,1,5,2],[5,3,5,5],[5,6,5,7],[5,8,5,11],[10,1,10,2],[10,3,10,6],[10,7,10,8],[10,9,10,11],[8,1,8,2],[8,3,8,11],[9,1,9,2],[9,3,9,4],[9,5,9,6],[9,7,9,8],[9,9,9,11],[11,1,11,2],[11,3,11,11],[12,1,12,2],[12,3,12,11],[13,1,13,2],[13,3,13,11],[22,1,22,11],[14,1,20,2],[14,3,14,8],[15,3,15,8],[16,3,16,8],[17,3,17,8],[18,3,18,8],[19,3,19,8],[20,3,20,8]]}
[]
[]
[]
[null,"행사개최내역서"]
[]
[null,"SRnD 과제번호",null,null,null,null,"연구책임자"]
[null,"연구과제명",null,null,null,null,"지원기관"]
[]
[null,"행사명"]
[null,"행사일시",null,null,null,null,null,"장소"]
[null,"목적",null,null,null,null,null,"사용액"]
[null,"행사내용"]
[null,"내부참석자"]
[null,"외부참석자",null,"성명(소속)"]
[null,"청구내역",null,null,null,null,null,null,null,":",null,"원"]
[null,null,null,null,null,null,null,null,null,":",null,"원"]
[null,null,null,null,null,null,null,null,null,":",null,"원"]
[null,null,null,null,null,null,null,null,null,":",null,"원"]
[null,null,null,null,null,null,null,null,null,":",null,"원"]
[null,null,null,null,null,null,null,null,null,":",null,"원"]
[null,null,null,"계",null,null,null,null,null,":",{"$f":"SUM(K15:K20)","v":0},"원"]
[]
[null,"서울대학교 산학협력단"]

{"sheet":"5","index":6,"n_rows":46,"n_cols":24,"rows_kept":46,"cut":false,"hidden":false,"merged":[[40,17,40,28],[32,17,32,27],[33,17,33,27],[4,17,4,27],[30,17,30,27],[14,17,14,27],[2,1,2,3],[11,17,11,28],[12,17,12,28],[6,17,6,27],[39,5,39,9],[33,3,33,13],[4,3,4,13],[6,3,6,13],[20,3,20,13],[31,3,31,13],[32,3,32,13]]}
[]
[]
[null," [국문]",null,null,null,null,null,null,null,null,null,null,null,null,null,null,"[영문]"]
[]
[null,null,null,"연구자 보안서약서 및 개인정보 활용 동의서",null,null,null,null,null,null,null,null,null,null,null,null,null,"Written Oath & Personal information Utillization Agreement"]
[]
[null,null,null,"보 안 서 약 서",null,null,null,null,null,null,null,null,null,null,null,null,null,"Written Oath"]
[]
[null,null,null,"본인은 연구과제에 참여함에 있어 다음 사항을 준수할 것을 엄숙히 서약합니다.",null,null,null,null,null,null,null,null,null,null,null,null,null,"1. I Hereby pledge myself to observe the following regulations while participating in the research and development project,"]
[null,null,null,null,null,null,null,null,null,null,null,null,null,null,null,null,null,"   at Seoul National University(SNU)."]
[null,null,null,"1. 본인은 연구과제에 참여함에 있어 제반 보안관계 규정 및 지침을 성실히 수행한다.",null,null,null,null,null,null,null,null,null,null,null,null,null,"2. I Hereby pledge myself not to leak out confidential information that is obtained while conducting my research work"]
[null,null,null,"2. 본인은 연구 정보를 누설함이 법률위반행위가 됨을 명심하고 재직 중은 물론 퇴직 후에도 알게 된 모든 기밀 사항을 일체",null,null,null,null,null,null,null,null,null,null,null,null,null,"   not only during but also after my stay at SNU."]
[null,null,null,"   타인에게 누설하지 아니한다. ",null,null,null,null,null,null,null,null,null,null,null,null,null,"3. I duly sign here with full understanding that I will be punished for any violation of the above mentioned regulations."]
[null,null,null,"3. 본인은 관계법규와 학칙을 준수하며, 연구과제에 대한 정보를 누설한 때에는 아래의 관계법규와 학칙에 따라 엄중한 처벌과"]
[null,null,null,"   징계를 받을 것을 서약한다.",null,null,null,null,null,null,null,null,null,null,null,null,null,"Personal Information Collection and Usage Agreement"]
[null,null,null,"가. 「과학기술기본법」 제11조(국가연구개발사업의 추진)"]
[null,null,null,"나. 「국가연구개발혁신법」 제21조(국가연구개발사업 등의 보안)",null,null,null,null,null,null,null,null,null,null,null,null,null,"■ The SNU R&DB Foundation retains personal information(including identifying information) for research management purposes."]
[null,null,null,"다. 「산업기술의 유출방지 및 보호에 관한 법률」 제12조(국가연구개발사업의 보호관리)",null,null,null,null,null,null,null,null,null,null,null,null,null,"  ▪ Required information : Name, sex, date of birth, resident registration number(identifying information), address, e-mail,"]
[null,null,null,"라. 「서울대학교 연구원 임용 규정」 제6조(해임·해촉) 등 각종 서울대학교 학칙·규정",null,null,null,null,null,null,null,null,null,null,null,null,null,"     mobile phone number, bank account information, research registration number, affiliation, position, nationality"]
[null,null,null,null,null,null,null,null,null,null,null,null,null,null,null,null,null,"     academic register information, payment amount"]
[null,null,null,"개인정보 수집 및 이용 동의",null,null,null,null,null,null,null,null,null,null,null,null,null,"  ▪ Purpose of retention : research management related affairs, including payment of personnel expenses and allowances,"]
[null,null,null,"■ 서울대학교 산학협력단에서는 연구관리 용도로 개인정보(고유식별정보 포함)를 보유하고 있습니다.",null,null,null,null,null,null,null,null,null,null,null,null,null,"     tax filing, and issuance of various certificates, SNU statistics, and academic research"]
[null,null,null,"  ▪ 필수정보 : 성명, 성별, 생년월일, 주민등록번호(고유식별정보), 주소, 이메일, 핸드폰번호, 계좌정보, 연구자등록번호, 소속, ",null,null,null,null,null,null,null,null,null,null,null,null,null,"■ The collected personal information is retained in accordance with Article 31(Preservation of Related Documents)"]
[null,null,null,"    직위, 국적, 학적정보, 지급액 ",null,null,null,null,null,null,null,null,null,null,null,null,null,"    of the Seoul National University Research Funds Management Regulation."]
[null,null,null,"  ▪ 보유목적: 인건비 및 수당 지급, 세무신고, 각종 증명 발급 등 연구관리 제반사항, 서울대학교의 통계작성, 학술연구 등",null,null,null,null,null,null,null,null,null,null,null,null,null,"■ You may not agree to the collection of personal information(including identifying information),"]
[null,null,null,"■ 수집한 개인정보는 「서울대학교 연구비 관리 규정」 제31조(관계서류의 보존)에 따라 보관합니다.",null,null,null,null,null,null,null,null,null,null,null,null,null,"    which can result in the restriction of payment of personnel expenses and allowances."]
[null,null,null,"■ 개인정보(고유식별정보 포함) 수집에 동의하지 않을 수 있으나, 이 경우 인건비 및 수당지급이 제한될 수 있습니다."]
[null,null,null,null,null,null,null,null,null,null,null,null,null,null,null,null,null,"○ Do you agree with the collection of your personal information and its utilization?                 Agree        Disagree"]
[null,null,null,"○ 개인정보 수집 및 이용에 동의하십니까?",null,null,null,null,"동의함",null,"동의하지 않음",null,null,null,null,null,null,"○ Do you agree with the collection of your identifying information and its utilization?               Agree        Disagree"]
[null,null,null,"○ 고유식별정보 수집 및 이용에 동의하십니까?",null,null,null,null,"동의함",null,"동의하지 않음"]
[null,null,null,null,null,null,null,null,null,null,null,null,null,null,null,null,null,"Provision Agreement of Personal Information to a Third Party"]
[null,null,null,"개인정보의 제3자 제공 동의",null,null,null,null,null,null,null,null,null,null,null,null,null,"■ The SNU R&DB Foundation handles the personal information of researchers within the scope specified in the purpose of"]
[null,null,null,"■ 서울대학교 산학협력단은 원칙적으로 연구자의 개인정보를 '개인정보 수집 및 이용 동의' 보유목적에서 명시한 범위 내에서\n    처리하며, 연구자의 사전 동의 없이는 본래의 범위를 초과하여 처리하거나 제3자에게 제공하지 않습니다. \n    다만, 다음의 경우에는 개인정보를 제공할 수 있습니다.",null,null,null,null,null,null,null,null,null,null,null,null,null,"    retention of the Personal Information Collection and Usage Agreement, and personal information is not handled\n    beyond the specified scope or provided to a third party without prior consent of the researcher. \n    However, for the following cases, personal information may be provided to a third party."]
[null,null,null,"  ▪ 연구자가 사전에 제3자 제공 및 공개에 동의한 경우\n  ▪ 법령 등에 의해 제공이 요구되는 경우\n  ▪ 서비스의 제공에 관한 계약의 이행을 위하여 필요한 개인정보로서 경제적/기술적인 사유로 통상의 동의를 받는 것이 \n     현저히 곤란한 경우\n  ▪ 통계작성 및 학술연구 등의 목적을 위해 필요한 경우로, 특정 개인을 알아볼 수 없는 형태로 개인정보를 제공하는 경우\n  ▪ 서울대학교의 통계작성, 학술연구 등의 목적을 위해 필요한 경우로 개인정보를 제공하는 경우",null,null,null,null,null,null,null,null,null,null,null,null,null,"  ▪ The researcher has agreed to the provision of information to a third party beforehand.\n  ▪ The provision is required by legislation.\n  ▪ Receiving an agreement is significantly difficult due to economical/technical reasons, during the fulfillment of a contract on\n     the provision of services.\n  ▪ The provision of information is required anonymously, during the purpose of producing SNU statistics or academic research.\n  ▪ The provision of information is required during the purpose of producing SNU statistics or academic research."]
[null,null,null,"■ 제공된 개인정보는 동의서가 작성된 시점부터 개인정보 제3자 제공목적 달성 시까지 보관됩니다.",null,null,null,null,null,null,null,null,null,null,null,null,null,"■ The provided personal information is retained from the point in time when agreement is given until the purpose of "]
[null,null,null,"■ 개인정보 제3자 제공에 동의하지 않을 수 있으나, 이 경우 인건비 및 수당지급이 제한될 수 있습니다.",null,null,null,null,null,null,null,null,null,null,null,null,null,"    personal information provision to a third party is achieved."]
[null,null,null,null,null,null,null,null,null,null,null,null,null,null,null,null,null,"■ You may not agree to the provision of personal information to a third party, which can result in the restriction of payment of"]
[null,null,null,"○ 개인정보의 제3자 제공에 동의하십니까?",null,null,null,null,"동의함",null,"동의하지 않음",null,null,null,null,null,null,"    personnel expenses and allowances."]
[]
[null,null,null,null,null,{"$f":"TODAY()","v":"2023-02-27"},null,null,null,null,null,null,null,null,null,null,null,"○ Do you agree with the provision of your personal information to a third party?                   Agree         Disagree"]
[null,null,null,null,null,null,null,null,null,null,null,null,null,null,null,null,null,{"$f":"TODAY()","v":"2023-02-27"}]
[]
[null,null,null,null,null,null,null,"서울대학교","○○○○○(기관명)",null,"○○○(성명)",null,"(인)",null,null,null,null,"Nationality:"]
[null,null,null,null,null,null,null,null,null,null,null,null,null,null,null,null,null,"Position:"]
[null,null,null,null,null,null,null,null,null,null,null,null,null,null,null,null,null,"Passport No."]
[null,null,null,null,null,null,null,null,null,null,null,null,null,null,null,null,null,"Name:",null,null,null,null,null,"Signiture:"]

{"sheet":"6","index":7,"n_rows":47,"n_cols":29,"rows_kept":47,"cut":false,"hidden":false,"merged":[[3,1,3,10],[4,1,4,10],[1,12,1,21],[8,12,18,20],[9,1,10,1],[9,2,10,4],[9,5,10,5],[9,6,9,9],[10,6,10,7],[10,8,10,9],[11,2,11,10],[12,2,12,10],[13,2,13,5],[13,6,13,10],[14,1,14,10],[16,2,16,10],[17,2,17,3],[7,1,7,10],[8,2,8,4],[8,6,8,7],[8,8,8,9],[15,1,15,10],[5,1,6,10],[23,1,23,2],[23,3,23,5],[23,6,23,8],[23,9,23,10],[19,1,19,10],[20,1,20,10],[21,1,22,2],[21,3,22,5],[21,6,22,8],[21,9,22,10],[35,1,35,2],[35,3,35,5],[35,7,35,10],[32,1,32,2],[32,3,32,6],[24,1,24,2],[24,3,24,5],[24,6,24,8],[24,9,24,10],[30,1,30,2],[30,3,30,10],[27,1,27,10],[28,1,28,10],[26,1,26,10],[0,22,0,28],[1,22,1,28],[2,22,2,28],[3,22,3,28],[4,22,4,28],[32,7,32,10],[47,1,47,10],[36,1,36,2],[36,3,36,6],[36,7,36,10],[39,1,39,10],[40,1,40,10],[43,7,43,8],[25,1,25,10],[29,1,29,10],[44,7,44,8],[45,7,45,8],[46,7,46,8],[31,1,31,2],[31,3,31,5],[31,7,31,10],[33,1,33,10],[34,1,34,2],[34,3,34,10],[5,25,5,26],[6,25,6,28],[7,23,7,28],[8,23,8,25],[8,26,8,28],[15,23,15,25],[16,23,16,25],[17,23,17,25],[9,22,9,28],[10,22,10,28],[11,22,11,28],[12,22,12,28],[13,23,13,25],[13,26,13,27],[14,22,22,22],[14,28,22,28],[14,26,14,27],[15,26,15,27],[16,26,16,27],[17,26,17,27],[18,26,19,27],[18,23,19,25],[20,23,20,25],[20,26,20,27],[27,23,27,28],[28,23,28,26],[29,23,29,26],[29,27,29,28],[23,22,25,28],[26,22,26,28],[21,26,21,27],[22,26,22,27],[21,23,21,25],[22,23,22,25],[30,22,30,28],[38,22,38,28],[36,23,37,28],[41,22,41,28],[31,22,31,28],[32,22,32,28],[33,22,33,28],[34,22,34,28],[35,22,35,28],[39,26,39,27]]}
[]
[null,null,null,null,null,null,null,null,null,null,null,null,null,null,null,null,null,null,null,null,null,null,"대학원생 연구보조업무 수행 동의서"]
[null,"■ 서울대학교 학생연구자 지원 규정 [별지 제1호 서식]"]
[null,"                     (                                                                                                                                                   )",null,null,null,null,null,null,null,null,null,null,null,null,null,null,null,null,null,null,null,null,"대학원생 000 와/과 지도교수 000 은/는 다음과 같이 대학원생의 연구보조업무 수행에 관한 사항을 정하고 이를 신의와 성실로 준수하기 위해 동의서를 작성한다."]
[null,"학생연구자 연구참여확약서[계정번호:               ]",null,null,null,null,null,null,null,null,null,null,null,null,null,null,null,null,null,null,null,null,"1. 대학원생 인적 사항"]
[null,"학생인건비통합관리기관장의 장과 연구책임자계정의 계정책임자       홍길동       과 학생연구자       홍길동1       은 \n다음과 같이 학생연구자 연구참여 확약에 필요한 사항을 정하고 이를 신의와 성실로 준수하기 위해 동 연구참여확약서를 체결한다.",null,null,null,null,null,null,null,null,null,null,null,null,null,null,null,null,null,null,null,null,"성 명",null,"학 번",null,null,"생년월일"]
[null,null,null,null,null,null,null,null,null,null,null,null,null,null,null,null,null,null,null,null,null,null,"소 속 (학과명)",null,"과정 및 학기","( 석박사통합 ) 과정 ( 6 ) 학기"]
[null,"1.학생연구자 인적사항",null,null,null,null,null,null,null,null,null,null,null,null,null,null,null,null,null,null,null,null,"국가연구자번호"]
[null,"성명","홍길동1",null,null,"학번",null,null,"생년월일",null,null,null,"※ 유의사항\n 1) 참여기간은 최소 학기 단위(1학기는 3월~8월, 2학기는 9월~익년 2월)로 작성하는 것을 원칙으로 함\n    다만, 신규 연구개발과제 협약 변경, 중단, 해약 등 불가피한 경우에는 변경할 수 있음\n    월지급액이 변경될 경우에는 ‘변경 월~8월’ 또는 ‘변경 월~익년 2월’로 작성하여 재 제출함\n 2) 석박사통합과정의 경우 학기별 인정 과정으로 작성함\n 3) 연구생등록자는 과정을 박사수료 또는 석사수료로 선택\n\n※ 작성요령\n1. 학생연구자 인적사항\n 1) 과정: 해당 과정 선택\n 2) 학기 : 1학기 (3월 ~ 8월) / 2학기 (9월 ~ 익년 2월) \n2. 연구참여정보\n 1) 담당업무: 해당 업무 선택(작성 필요시 아래 셀 선택 후 수기 작성)\n 2) 참여기간: 해당 참여기간 입력\n 3) 지급액: 월 지급될 급여 입력(근로소득자의 경우 기관부담 및 퇴직적립금 제외 한 금액 입력→ 근로소득계산표 별도제출)\n 4) 지급률: 과정 및 지급액 작성 시 지급률 자동 계산(소수점 셋째자리 버림)\n    - 과정별 지급단가: 박사: 3,000,000, 석사: 2,200,000, 학사: 1,300,000\n3. 기타\n 1) 신규 및 변경(변경사항) 필히 체크\n 2) 홍길동 입력시 계정책임자 성명 자동 입력, 홍길동 1 입력시 학생연구자 성명 자동 입력\n 3) 계정번호: 빈란으로 제출(학생인건비 지출 담당자 별도 수기 입력)\n 4) 학생연구자 및 연구책임자계정의 계정책임자 서명 필수 \n",null,null,null,null,null,null,null,null,null,"연락처"," (휴대전화번호)",null,null," (E-mail)"]
[null,"소속\n(학과명)",null,null,null,"과정 및 학기","과정",null,null,null,"학기",null,null,null,null,null,null,null,null,null,null,null,"2. 연구보조업무 수행 관련 사항"]
[null,null,null,null,null,null,"박사",null,"재학",null,null,null,null,null,null,null,null,null,null,null,null,null,"가. 기간(6개월, 학기 단위) : 20 . . . ~ 20 . . . "]
[null,"국가연구자번호",null,null,null,null,null,null,null,null,null,null,null,null,null,null,null,null,null,null,null,null,"나. 담당업무(역할) : 연구보조업무 수행"]
[null,"주소",null,null,null,null,null,null,null,null,null,null,null,null,null,null,null,null,null,null,null,null,"다. 월별 연구보조업무 수행 지원금(예시) "]
[null,"연락처","(휴대전화번호)",null,null,null,"(E-mail)",null,null,null,null,null,null,null,null,null,null,null,null,null,null,null,"과정","연구보조업무 수행 지원금 재원",null,null,"해당 항목에 체크(복수 가능)",null,"월 총 지급액(원)"]
[null,null,null,null,null,null,null,null,null,null,null,null,null,null,null,null,null,null,null,null,null,null,"석박사\n통합과정","1. 국가연구개발사업 학생인건비",null,null,"√",null,1800000]
[null,"2. 연구참여정보",null,null,null,null,null,null,null,null,null,null,null,null,null,null,null,null,null,null,null,null,null,"2. 민간연구과제",null,null,"√"]
[null,"  가. 연구참여기간: ","20  .    .    .  ~  20  .    .    .",null,null,null,null,null,null,null,null,null,null,null,null,null,null,null,null,null,null,null,null,"3. 용역연구과제"]
[null,"  나. 담당업무(역할):",null,null,null,null,null,null,null,null,null,null,null,null,null,null,null,null,null,null,null,null,null,"4. 교내연구과제"]
[null,null,null,null,null,null,null,null,null,null,null,null,null,null,null,null,null,null,null,null,null,null,null,"5. BK21사업 연구장학금",null,null,"√"]
[null,"    ※ 연구수행내용, 역할 등 담당업무를 구체적으로 작성하고, 연구와 관련 없는 업무는 기재하지 않음  "]
[null,"  다. 계정별 월 학생인건비 지급액 및 지급률",null,null,null,null,null,null,null,null,null,null,null,null,null,null,null,null,null,null,null,null,null,"6. 강의연구지원 장학금"]
[null,"구분",null,"연구개발기관계정\n균등지급",null,null,"연구책임자 계정 \n차등지급",null,null,"합계\n(세금 포함)",null,null,null,null,null,null,null,null,null,null,null,null,null,"7. 기초학문분야 학문후속세대 장학금",null,null,"√"]
[null,null,null,null,null,null,null,null,null,null,null,null,null,null,null,null,null,null,null,null,null,null,null,"8. 기타"]
[null,"지급액",null,null,null,null,0,null,null,{"$f":"G24","v":0},null,null,null,null,null,null,null,null,null,null,null,null,"※ 월 총 지급액은 지도교수가 기 확보한 인건비 및 장학금을 기준으로 작성하되, 교내 타 연구책임자(상기 1-4)와\n   교외 타 연구책임자 (상기 1)로부터 지급받는 인건비도 포함될 수 있음.\n※ 매 학기 초 동의서 작성 후 해당 기간 내에 신규과제가 추가되는 경우, 동의서를 재작성하지 않고 월 총지급액에 인건비를\n   추가하여 지급할 수 있음."]
[null,"지급률*",null,null,null,null,{"$f":"IF(G11=\"학사\",ROUNDDOWN(G24/1000000*100,2),IF(G11=\"석사\",ROUNDDOWN(G24/1800000*100,2),IF(G11=\"박사\",ROUNDDOWN(G24/2500000*100,2))))","v":0},null,null,{"$f":"G25","v":0}]
[]
[null,"  라. 학생인건비 지급일: 매월 25일",null,null,null,null,null,null,null,null,null,null,null,null,null,null,null,null,null,null,null,null,"라. 지도교수 인적사항"]
[null,"  마. 지급방법: 학생연구자 명의 예금통장에 입금",null,null,null,null,null,null,null,null,null,null,null,null,null,null,null,null,null,null,null,null,"성 명"]
[null,"    ※ 참여중단, 종료 시 중단 종료일까지 참여한 업무 일(월 등) 수에 대해 일할(월할 등) 계산하여 지급함",null,null,null,null,null,null,null,null,null,null,null,null,null,null,null,null,null,null,null,null,"소 속(학과명)",null,null,null,null,"직 급"]
[null,"  바. 연구개발기관계정의 계정책임자(해당사항 없음)",null,null,null,null,null,null,null,null,null,null,null,null,null,null,null,null,null,null,null,null,"연락처"," (연구실)",null,null,null," (E-mail)"]
[null,"성명",null,null,null,null,null,null,null,null,null,null,null,null,null,null,null,null,null,null,null,null,"3. 기타 사항"]
[null,"소속\n(학과명)",null,null,null,null,"직급",null,null,null,null,null,null,null,null,null,null,null,null,null,null,null,"가. 대학원생은 연구보조업무를 성실히 수행한다."]
[null,"연락처",null,"(연구실)",null,null,null,"(E-mail)",null,null,null,null,null,null,null,null,null,null,null,null,null,null,"나. 대학원생은 본교에서 실시하는 안전·보건교육 및 연구윤리교육을 이수하여야 한다."]
[null,"  사. 연구책임자계정의 계정책임자",null,null,null,null,null,null,null,null,null,null,null,null,null,null,null,null,null,null,null,null,"다. 대학원생은 동 동의서에 따라 지급받는 지원금 이외에 타 소득이 발생한 경우 지도교수에게 통보하여야 한다."]
[null,"성명",null,"홍길동",null,null,null,null,null,null,null,null,null,null,null,null,null,null,null,null,null,null,"라. 대학원생은 질병·실종·형사소추 및 제반 법령과 규정상 문제 등으로 연구보조업무 수행이 불가능하거나 업무 능력 미달 또는 \n    업무를 성실히 수행하지 아니할 경우 지원이 중지될 수 있다."]
[null,"소속\n(학과명)",null,null,null,null,"직급"]
[null,"연락처",null,"(연구실)",null,null,null,"(E-mail)",null,null,null,null,null,null,null,null,null,null,null,null,null,null,null,"서울대학교 산학협력단 연구비 산정기준에 따라 대학원생에게 연구보조업무 지원금을 지급하는\nRA제도 취지에 동의하며, 아래의 개인정보 제공 활용에 동의합니다.\n*제공정보: 성명, 소속, 직위, 계좌번호, 주민등록번호(고유식별번호), 국적, 전화, 이메일 등\n*제공사유: 인건비 및 장학금 지급, 세무신고, 연구관리 제반사항, 통계자료 작성 목적으로 활용"]
[]
[null,"3. 기타 확약사항",null,null,null,null,null,null,null,null,null,null,null,null,null,null,null,null,null,null,null,null,{"$f":"TODAY()","v":"2023-02-27"}]
[null,"\n  가. 학생연구자는 연구 수행에 필요한 담당업무를 성실히 수행한다.\n  나. 계정책임자는 학생연구자의 정당한 학업활동 및 연구활동 등을 보장하기 위해 노력하고, 학생연구자 제도를 공정하고 투명하게 운영한다.\n  다. 계정책임자는 학생연구자에게 연구 내용과 무관한 업무를 지시하거나 사적 업무에 동원하지 않는다.\n  라. 학생연구자는 본교에서 실시하는 안전·보건교육 및 연구윤리교육을 이수하여야 한다.\n  마. 계정책임자는 인권, 양성평등, 윤리 등에 관한 교육을 이수하고 학생연구자에게 폭언·폭행·성추행 및 성희롱 등을 포함한 제반 권리를 침해하지 않는다.\n  바. 계정책임자는 학생연구자에게 지급된 학생인건비를 어떠한 이유에서든지 회수하여 공동으로 관리 또는 사용(학생인건비부당회수)하지 않는다.\n  사. 학생연구자는 계정책임자가 연구참여확약서 조건을 위반하였을 경우 연구기관에 시정을 요구할 수 있다.\n  아. 학생연구자는 동 연구참여확약서에 따라 지급 받는 인건비 이외에 타 소득이 발생한 경우 계정책임자 및 소속된 연구기관에 반드시 통보하여야 한다.\n  자. 계정책임자는 학생연구자가 질병·실종·형사소추 등으로 업무 수행이 불가능하거나 업무 능력 미달 또는 업무를 성실히 수행하지 아니할 경우 연구참여확약을\n      취소할 수 있다.\n",null,null,null,null,null,null,null,null,null,null,null,null,null,null,null,null,null,null,null,null,null,null,null,"대학원생 :\n\n지도교수 :","홍길동 1\n\n홍길동",null,"(서명 또는 인)\n\n(서명 또는 인)"]
[null,{"$f":"TODAY()","v":"2023-02-27"},null,null,null,null,null,null,null,null,null,null,null,null,null,null,null,null,null,null,null,null,null,null,null,"서울대학교 총장 귀하"]
[]
[]
[null,null,null,null,null,null,"학생연구자:",{"$f":"C9","v":"홍길동1"},null,"(서명 또는 인)"]
[null,null,null,null,null,null,"연구책임자계정의 계정책임자:",{"$f":"D35","v":"홍길동"},null,"(서명 또는 인)"]
[null,null,null,null,null,null,"연구개발기관계정의 계정책임자(해당사항 없음):",null,null,"(서명 또는 인)"]
[null,null,null,null,null,null,"학생인건비통합관리기관장(산학협력단장):","김재영",null,"(서명 또는 인)"]

{"sheet":"7","index":8,"n_rows":30,"n_cols":12,"rows_kept":30,"cut":false,"hidden":false,"merged":[[0,1,0,11],[2,1,2,11],[4,1,4,11],[5,1,5,2],[5,3,5,5],[5,6,5,7],[5,8,5,11],[6,1,6,2],[6,3,6,5],[6,6,6,7],[6,8,6,11],[7,1,7,2],[7,3,7,11],[11,11,12,11],[8,1,8,2],[8,3,8,5],[8,6,8,7],[8,8,8,11],[10,1,10,11],[11,1,12,1],[11,2,12,2],[11,3,12,3],[11,4,12,4],[11,5,12,5],[11,6,12,6],[11,7,12,7],[11,8,12,8],[11,9,12,9],[11,10,12,10],[25,1,25,11],[13,1,15,1],[13,2,15,2],[13,3,15,3],[13,4,15,4],[13,6,15,6],[13,7,15,7],[13,8,15,8],[13,9,15,9],[13,10,15,10],[13,11,15,11],[17,1,23,11],[27,1,27,2],[27,3,27,4],[27,5,27,7],[27,8,27,9],[29,1,29,11]]}
[null,"★ 본 서식은 SRnD시스템 참여연구원 화면에서도 출력 가능합니다. (기 등록된 연구자 정보 자동 출력)"]
[]
[null,"외부참여연구자 소속기관장 확인서"]
[]
[null,"□ 과제 현황"]
[null,"지원기관",null,null,null,null,"지원사업명"]
[null,"주관연구기관",null,"서울대학교산학협력단",null,null,"주관연구책임자"]
[null,"과제명"]
[null,"연구기간",null,null,null,null,"연구비"]
[]
[null,"□ 외부 참여연구자 정보"]
[null,"성명","생년월일","소속","직급","참여기간","지급\n구분","인건비\n계상률","월기준\n금액(원)","월지급\n예정액(원)","이메일","휴대폰번호"]
[]
[null,null,null,null,null,null,"지급"]
[null,null,null,null,null,"~"]
[]
[]
[null,"1. 본 기관 소속 연구자가 서울대학교에서 수행하는 과제에 참여하여 인건비를 지급받고, \n   전체 인건비가 본인 직급 기준인건비의 100%를 초과하지 않음을 확인합니다. 본 기관 과제별 인건비계상률의 상향조정으로 \n   해당 연구자의 총 인건비계상률이 100%를 초과하게 될 경우 서울대학교에 관련 사실을 고지하겠습니다.\n2. 연구자가 해당 과제에서 인건비를 지급받을 시 개인계좌로 지급됨을 확인합니다.\n※ 참여자가 외국인인 경우, \"체류자격 외 활동 허가\"를 받은 인력만 참여가 가능합니다.\n※ 「국가연구개발혁신법」에 따라 참여연구자는 국가연구개발사업에 총 인건비계상률 100%을 초과하여 참여할 수 없음"]
[]
[]
[]
[]
[]
[]
[]
[null,{"$f":"TODAY()","v":"2023-02-27"}]
[]
[null,null,null,"소속기관장 :",null,{"$f":"D14","v":0},null,null,"산학협력단장 ",null,"(직인)"]
[]
[null,"서울대학교산학협력단장 귀하"]

{"sheet":"8","index":9,"n_rows":29,"n_cols":24,"rows_kept":29,"cut":false,"hidden":false,"merged":[[16,16,16,17],[17,16,17,17],[14,6,14,11],[19,6,19,11],[18,6,18,11],[17,6,17,11],[16,6,16,11],[15,6,15,11],[1,1,1,11],[1,13,1,23],[2,1,2,11],[2,13,2,23],[3,2,3,11],[3,14,3,23],[4,2,4,11],[4,14,4,23],[6,2,6,11],[6,14,6,23],[7,1,11,1],[7,2,7,3],[7,4,7,7],[7,8,7,11],[7,13,11,13],[7,14,7,15],[9,20,9,23],[7,16,7,19],[7,20,7,23],[8,2,8,3],[8,4,8,7],[8,8,8,11],[8,14,8,15],[8,16,8,19],[8,20,8,23],[9,2,9,3],[9,4,9,7],[9,8,9,11],[9,14,9,15],[9,16,9,19],[11,20,11,23],[10,2,10,3],[10,4,10,7],[10,8,10,11],[10,14,10,15],[10,16,10,19],[10,20,10,23],[11,2,11,3],[11,4,11,7],[11,8,11,11],[11,14,11,15],[11,16,11,19],[13,1,13,11],[13,13,13,23],[14,4,14,5],[14,16,14,17],[14,18,14,23],[21,1,21,10],[21,13,21,23],[15,4,15,5],[15,16,15,17],[18,4,18,5],[18,16,18,17],[19,4,19,5],[19,16,19,17],[20,1,20,10],[17,4,17,5],[16,4,16,5],[19,18,19,23],[18,18,18,23],[17,18,17,23],[16,18,16,23],[15,18,15,23],[22,1,22,10],[22,13,22,23],[23,13,23,23],[24,1,24,10],[24,13,24,23],[23,1,23,11],[27,1,27,11],[27,13,27,23],[28,13,28,23],[25,1,25,3],[25,13,25,17],[25,18,25,19],[26,1,26,10],[26,13,26,23],[25,6,25,11],[25,20,25,23]]}
[]
[null,"국내·외 출장 신청(명령)서",null,null,null,null,null,null,null,null,null,null,null,"국내·외 출장결과보고서"]
[null,"1. 출장사항",null,null,null,null,null,null,null,null,null,null,null,"1. 출장사항"]
[null,"출장형태","학회참석 및 발표",null,null,null,null,null,null,null,null,null,null,"출장형태","학회참석 및 발표"]
[null,"출장목적","ㅇㅇㅇㅇㅇㅇ 학회 포스터 발표",null,null,null,null,null,null,null,null,null,null,"출장목적","ㅇㅇㅇㅇㅇㅇ 학회 포스터 발표"]
[null,"출장기간","2023-05-05","10:00:00","~","2023-05-08","12:00:00","(",{"$f":"DATEDIF(C6,F6,\"d\")","v":3},"박",{"$f":"I6+1","v":4},"일)",null,"출장기간","2023-03-10","10:00:00","~","2023-03-15","12:00:00","(",{"$f":"DATEDIF(O6,R6,\"d\")","v":5},"박",{"$f":"U6+1","v":6},"일)"]
[null,"출장국(출장도시)",null,null,null,null,null,null,null,null,null,null,null,"출장국(출장도시)"]
[null,"출장자 \n인적사항","성명",null,"소속",null,null,null,"직급",null,null,null,null,"출장자 \n인적사항","성명",null,"소속",null,null,null,"직급"]
[null,null,{"$f":"IFERROR(INDEX(#REF!,MATCH(#REF!,이름,0)),\"\")","v":""},null,null,null,null,null,null,null,null,null,null,null,{"$f":"IFERROR(INDEX(#REF!,MATCH(#REF!,이름,0)),\"\")","v":""}]
[null,null,{"$f":"IFERROR(INDEX(#REF!,MATCH(#REF!,이름,0)),\"\")","v":""},null,null,null,null,null,null,null,null,null,null,null,{"$f":"IFERROR(INDEX(#REF!,MATCH(#REF!,이름,0)),\"\")","v":""}]
[null,null,{"$f":"IFERROR(INDEX(#REF!,MATCH(#REF!,이름,0)),\"\")","v":""},null,null,null,null,null,null,null,null,null,null,null,{"$f":"IFERROR(INDEX(#REF!,MATCH(#REF!,이름,0)),\"\")","v":""}]
[null,null,{"$f":"IFERROR(INDEX(#REF!,MATCH(#REF!,이름,0)),\"\")","v":""},null,null,null,null,null,null,null,null,null,null,null,{"$f":"IFERROR(INDEX(#REF!,MATCH(#REF!,이름,0)),\"\")","v":""}]
[]
[null,"2. 주요 출장 일정",null,null,null,null,null,null,null,null,null,null,null,"2. 주요 출장 일정"]
[null,"날짜","출발지","도착지","방문기관",null,"활동내용",null,null,null,null,null,null,"날짜","출발지","도착지","방문기관",null,"활동내용"]
[]
[]
[]
[]
[]
[]
[null,"위와 같이 출장을 신청합니다.",null,null,null,null,null,null,null,null,null,null,null,"위와 같이 출장 결과보고서를 제출합니다."]
[]
[null,"년          월          일",null,null,null,null,null,null,null,null,null,null,null,{"$f":"TODAY()","v":"2023-02-27"}]
[]
[null,null,null,null,"연구책임자",null,"(인)",null,null,null,null,null,null,null,null,null,null,null,"연구책임자",null,"(인)"]
[]
[null,"서울대학교 산학협력단",null,null,null,null,null,null,null,null,null,null,null,"서울대학교 산학협력단"]
[null,null,null,null,null,null,null,null,null,null,null,null,null,"\n[붙임] (국외 출장)출입국 관련 증명자료(출입국에 관한 사실증명서 또는 여권사본 등) 1부."]

{"sheet":"9","index":10,"n_rows":34,"n_cols":10,"rows_kept":34,"cut":false,"hidden":false,"merged":[[1,1,1,9],[3,2,3,4],[3,5,3,6],[3,7,3,9],[4,2,4,4],[4,5,4,6],[4,7,4,9],[6,1,6,9],[7,2,7,4],[7,6,7,9],[8,1,9,1],[8,2,9,2],[8,3,8,8],[8,9,9,9],[9,3,9,4],[9,5,9,6],[9,7,9,8],[10,3,10,4],[10,5,10,6],[10,7,10,8],[11,3,11,4],[11,5,11,6],[11,7,11,8],[12,3,12,4],[12,5,12,6],[12,7,12,8],[13,3,13,4],[13,5,13,6],[13,7,13,8],[14,3,14,4],[14,5,14,6],[14,7,14,8],[15,3,15,4],[15,5,15,6],[15,7,15,8],[17,1,17,9],[18,8,18,9],[19,1,23,1],[19,2,23,2],[19,3,23,3],[19,4,23,4],[19,8,19,9],[20,8,20,9],[21,8,21,9],[22,8,22,9],[33,1,33,9],[23,8,23,9],[24,1,24,5],[24,8,24,9],[27,1,27,9],[29,1,29,9],[31,5,31,6],[31,7,31,9]]}
[]
[null,"연구수당 기여도 평가서 및 지급 신청서"]
[]
[null,"SRnD 과제번호",null,null,null,"연구책임자"]
[null,"연구과제명",null,null,null,"지원기관"]
[]
[null,"□ 기여도 평가서"]
[null,"평가기간","yymmdd",null,null,"~","yymmdd"]
[null,"평가대상자","기여도(%)","평가항목(예시)",null,null,null,null,null,"비고"]
[null,null,null,"연구과제 수행",null,"연구결과물",null,"연구결과 발표"]
[null,"연구자1",{"$f":"SUM(D11:I11)","v":60},10,null,20,null,30]
[null,"연구자2",{"$f":"SUM(D12:I12)","v":40},20,null,20,null,0]
[null,"연구자3",0]
[null,"연구자4",0]
[null,"연구자5",0]
[null,"합계",{"$f":"SUM(C11:C15)","v":100},{"$f":"SUM(D11:D15)","v":30},null,{"$f":"SUM(F11:F15)","v":40},null,{"$f":"SUM(H11:H15)","v":30}]
[]
[null,"□ 연구수당 지급 신청서"]
[null,"세목","예산액","기 지급액","금회 지급액","성명","기여도(%)","지급액","입금계좌"]
[null,"연구수당",10000000,3000000,{"$f":"C20-D20","v":7000000},{"$f":"B11","v":"연구자1"},60,{"$f":"$E$20*G20*0.01","v":4200000},"(인건비 계좌와 동일)"]
[null,null,null,null,null,"연구자2",{"$f":"C12","v":40},{"$f":"$E$20*G21*0.01","v":2800000},"(인건비 계좌와 동일)"]
[null,null,null,null,null,"연구자3",{"$f":"C13","v":0},{"$f":"$E$20*G22*0.01","v":0},"(인건비 계좌와 동일)"]
[null,null,null,null,null,"연구자4",0,{"$f":"$E$20*G23*0.01","v":0},"(인건비 계좌와 동일)"]
[null,null,null,null,null,"연구자5",0,{"$f":"$E$20*G24*0.01","v":0},"(인건비 계좌와 동일)"]
[null,"합계",null,null,null,null,{"$f":"SUM(G20:G24)","v":100},{"$f":"SUM(H20:H24)","v":7000000}]
[]
[]
[null,"상기와 같이 연구과제 수행과 관련하여 참여연구자에게 연구수당을 지급 청구합니다."]
[]
[null,{"$f":"TODAY()","v":"2023-02-27"}]
[]
[null,null,null,null,null,"연구책임자",null,"(인)"]
[]
[null,"서울대학교 산학협력단"]

{"sheet":"10","index":11,"n_rows":28,"n_cols":9,"rows_kept":28,"cut":false,"hidden":false,"merged":[[19,1,19,8],[3,1,3,8],[5,2,5,4],[5,5,5,6],[5,7,5,8],[6,2,6,4],[6,5,6,6],[6,7,6,8],[16,1,16,5],[7,5,7,6],[7,2,7,4],[7,7,7,8],[9,1,9,8],[18,1,18,8],[17,1,17,8],[20,0,20,8],[22,0,22,8],[29,0,29,8],[24,4,24,5],[24,6,24,8],[27,0,27,8]]}
[]
[]
[]
[null,"보안수당 지급신청서"]
[]
[null,"SRnD 과제번호",null,null,null,"연구책임자"]
[null,"연구과제명",null,null,null,"보안과제 여부 확인",null,"□ 확인"]
[null,"연구기간","20 .  .  . ～ 20 .  .  .",null,null,"지원기관"]
[]
[null,"󰋪 보안수당 지급내역"]
[null,"연구자구분","소속","성명","생년월일","은행/계좌번호","인건비 계상액","인건비의 3% 계상액","지급금액"]
[null,"책임"]
[null,"공동"]
[null,"연구보조원"]
[null,"연구보조원"]
[null,"연구보조원"]
[null,"계"]
[]
[null,"※ 보안수당 사용기준: 국가연구개발사업 연구개발비 사용 기준에 따라 보안과제 수행 참여연구자별로 인건비의 3% 범위 내에서 계상할 수 있으며, \n    계상한 보안수당은 해당 참여연구자에게만 지급할 수 있음"]
[]
["상기와 같이 연구과제 수행과 관련하여 참여연구자에게 보안수당을 지급 청구합니다."]
[]
[{"$f":"TODAY()","v":"2023-02-27"}]
[]
[null,null,null,null,"연구책임자",null,"(인)"]
[]
[]
["서울대학교 산학협력단"]

{"sheet":"A","index":12,"n_rows":23,"n_cols":23,"rows_kept":23,"cut":false,"hidden":false,"merged":[[0,1,0,11],[2,1,2,11],[2,13,2,23],[4,1,4,2],[4,21,4,23],[5,1,5,2],[5,3,5,6],[5,7,5,8],[5,9,5,11],[5,13,5,14],[4,3,4,6],[4,7,4,8],[4,9,4,11],[4,13,4,14],[4,15,4,18],[4,19,4,20],[5,15,5,18],[5,19,5,20],[5,21,5,23],[7,16,7,17],[7,18,7,19],[7,20,7,21],[7,22,7,23],[8,1,8,2],[8,3,8,6],[7,1,7,2],[7,3,7,4],[7,5,7,6],[7,7,7,8],[7,9,7,11],[7,14,7,15],[8,22,8,23],[9,1,14,2],[9,3,14,11],[9,14,9,15],[9,16,9,17],[9,18,9,19],[9,20,9,21],[9,22,9,23],[8,7,8,8],[8,9,8,11],[8,14,8,15],[8,16,8,17],[8,18,8,19],[8,20,8,21],[12,18,12,19],[12,20,12,21],[12,22,12,23],[13,14,13,15],[13,16,13,17],[13,18,13,19],[13,20,13,21],[13,22,13,23],[10,22,10,23],[11,14,11,15],[11,16,11,17],[11,18,11,19],[11,20,11,21],[11,22,11,23],[12,14,12,15],[12,16,12,17],[10,14,10,15],[10,16,10,17],[10,18,10,19],[10,20,10,21],[14,14,14,15],[14,16,14,17],[14,18,14,19],[14,20,14,21],[14,22,14,23],[15,14,15,15],[15,16,15,17],[15,18,15,19],[15,20,15,21],[15,22,15,23],[17,22,17,23],[18,1,18,11],[18,14,18,15],[18,16,18,17],[18,18,18,19],[18,20,18,21],[18,22,18,23],[16,14,16,15],[16,16,16,17],[16,18,16,19],[16,20,16,21],[16,22,16,23],[17,14,17,15],[17,16,17,17],[17,18,17,19],[17,20,17,21],[20,14,20,15],[20,16,20,17],[20,18,20,19],[20,20,20,21],[20,22,20,23],[19,1,19,11],[19,14,19,15],[19,16,19,17],[19,18,19,19],[19,20,19,21],[19,22,19,23],[21,22,21,23],[22,1,22,11],[22,14,22,15],[22,16,22,17],[22,18,22,19],[22,20,22,21],[22,22,22,23],[21,14,21,15],[21,16,21,17],[21,18,21,19],[21,20,21,21],[21,7,21,8],[21,9,21,11]]}
[]
[]
[null,"주말·휴일 회의 사전 품의서",null,null,null,null,null,null,null,null,null,null,null,"참석자 서명부＊지원기관 요청시"]
[]
[null,"SRnD 과제번호",null,null,null,null,null,"연구책임자",null,null,null,null,null,"SRnD 과제번호",null,null,null,null,null,"연구책임자"]
[null,"연구과제명",null,null,null,null,null,"지원기관",null,null,null,null,null,"연구과제명",null,null,null,null,null,"지원기관"]
[]
[null,"일자",null,"2023-04-08",null,"hh:mm",null,"회의장소",null,null,null,null,null,"연번","소속",null,"직위",null,"성명",null,"서명",null,"비고"]
[null,"참석예정자",null,"○○○외 ○명",null,null,null,"예정금액(원)",null,null,null,null,null,1]
[null,"주말·휴일\n회의 집행 사유",null,"(예시) 회의참석자 중 외부인사가 포함되어 있으며 외부인사와 일정이 맞지 않아 부득이하게 주말/휴일 회의를 진행하고자 함",null,null,null,null,null,null,null,null,null,2]
[null,null,null,null,null,null,null,null,null,null,null,null,null,3]
[null,null,null,null,null,null,null,null,null,null,null,null,null,4]
[null,null,null,null,null,null,null,null,null,null,null,null,null,5]
[null,null,null,null,null,null,null,null,null,null,null,null,null,6]
[null,null,null,null,null,null,null,null,null,null,null,null,null,7]
[null,null,null,null,null,null,null,null,null,null,null,null,null,8]
[null,null,null,null,null,null,null,null,null,null,null,null,null,9]
[null,null,null,null,null,null,null,null,null,null,null,null,null,10]
[null,"상기와 같이 연구과제 수행과 관련하여 주말·휴일 회의를 사전품의 하고자 합니다.",null,null,null,null,null,null,null,null,null,null,null,11]
[null,"년         월         일",null,null,null,null,null,null,null,null,null,null,null,12]
[null,null,null,null,null,null,null,null,null,null,null,null,null,13]
[null,null,null,null,null,null,null,"연구책임자",null,"(인)",null,null,null,14]
[null,"서울대학교 산학협력단",null,null,null,null,null,null,null,null,null,null,null,15]

{"sheet":" B","index":13,"n_rows":9,"n_cols":21,"rows_kept":9,"cut":false,"hidden":false,"merged":[[5,4,5,5],[5,6,6,6],[3,0,3,1],[5,9,6,9],[5,18,6,18],[5,10,6,10],[5,11,6,11],[5,19,5,20],[1,0,1,20],[3,2,3,11],[3,13,3,20],[5,12,6,12],[5,13,6,13],[5,14,6,14],[5,15,6,15],[5,17,6,17],[5,0,6,0],[5,1,6,1],[5,2,6,2],[5,3,6,3],[5,16,6,16],[5,7,6,7],[5,8,6,8]]}
[]
["외부연구자 등록신청서"]
[]
["SRnD 과제번호",null,null,null,null,null,null,null,null,null,null,null,"연구책임자"]
[]
["순번","성명","성명(영문)","성명(한문)","주민등록번호",null,"소속기관","소속부서","소속관리기관\n(원소속)","국가연구자번호","국가","여권번호\n(외국인 필수)","이메일","계좌번호\n('-'없이 숫자만 기재)","은행명","예금주","월 기준금액","직급구분","거주구분","활용기간"]
[null,null,null,null,"앞자리","뒷자리",null,null,null,null,null,null,null,null,null,null,null,null,null,"시작일","종료일"]
[1,"홍길동",null,null,789012,1234567,"산학협력단","산학협력단","산학협력단",null,"한국",null,"sample@snu.ac.kr",1231234512,"한국은행","홍길동",null,"교수(외부)","거주자",20200101,20201231]
[2,"마이클",null,null,889012,5234567,"산학협력단","산학협력단","산학협력단",null,"조지아","ABC00012","sample2@snu.ac.kr",2231234512,"HSBC","마이클",null,"교수(외부)","비거주자",20200301,20200831]

{"sheet":"C","index":14,"n_rows":48,"n_cols":34,"rows_kept":48,"cut":false,"hidden":false,"merged":[[9,0,9,18],[2,0,2,18],[3,0,3,18],[5,12,5,14],[6,12,6,14],[8,0,8,18],[14,0,14,1],[14,2,14,18],[15,0,15,18],[11,16,12,18],[12,11,12,15],[10,0,10,1],[10,3,10,10],[10,11,10,15],[10,16,10,18],[11,0,13,1],[11,2,12,2],[11,3,12,3],[11,4,12,4],[11,5,12,5],[11,6,12,6],[11,7,12,7],[11,8,12,8],[11,9,12,9],[11,10,12,10],[11,11,11,15],[13,3,13,18],[16,0,16,1],[16,2,16,15],[16,16,16,18],[21,0,21,1],[21,2,21,18],[17,0,17,1],[17,2,17,18],[18,0,18,1],[18,2,18,7],[18,8,18,15],[18,16,18,18],[19,0,19,18],[20,0,20,1],[20,2,20,10],[20,11,20,15],[20,16,20,18],[26,9,27,9],[26,10,27,10],[26,11,27,11],[26,12,27,12],[26,13,27,13],[26,14,27,14],[26,8,27,8],[22,0,22,1],[22,2,22,18],[23,0,23,1],[23,2,23,4],[23,5,23,18],[24,0,24,1],[24,2,24,4],[24,5,25,18],[25,0,25,1],[25,2,25,4],[26,0,26,1],[26,2,27,4],[26,5,27,5],[26,6,27,6],[26,7,27,7],[43,0,43,18],[44,0,44,18],[45,0,45,18],[33,0,33,1],[33,2,33,7],[33,8,33,11],[33,12,33,16],[34,0,35,1],[34,2,34,4],[34,5,34,11],[34,12,34,16],[35,2,35,4],[35,5,35,11],[35,12,35,16],[8,29,9,31],[6,22,6,23],[7,22,7,23],[8,22,9,23],[6,24,6,26],[7,24,7,26],[8,24,9,26],[1,22,1,31],[36,1,36,18],[29,0,29,18],[30,0,30,1],[30,2,30,7],[30,8,30,15],[30,16,30,18],[31,0,32,1],[31,2,31,18],[32,2,32,18],[26,15,27,15],[26,17,26,18],[27,0,27,1],[27,17,27,18],[28,0,28,1],[28,2,28,4],[28,5,28,18],[43,33,54,40],[37,22,38,31],[39,22,40,31],[4,33,18,40],[21,33,24,40],[27,33,31,40],[34,33,40,40],[22,30,25,31],[26,30,29,31],[30,22,35,29],[30,30,35,31],[26,22,29,29],[22,22,25,29],[19,22,21,29],[13,22,13,29],[13,30,13,31],[14,22,18,29],[14,30,18,31],[19,30,21,31],[6,27,6,28],[7,27,7,28],[8,27,9,28],[6,29,6,31],[7,29,7,31]]}
[]
[null,null,null,null,null,null,null,null,null,null,null,null,null,null,null,null,null,null,null,null,null,null,"※  산학협력단회계의 연구비(간접비 포함)에서 지출되는 국외거래에 대한 대금 지급건이 부가가치세 대리납부 과세대상에\n    해당하는 경우, 용역대가의 10%를 납부해야 하오니, 신고대상 목록을 정확히 확인하여 주시기 바랍니다."]
["외화송금신청서 (APPLICATION FOR REMITTANCE) ",null,null,null,null,null,null,null,null,null,null,null,null,null,null,null,null,null,null,null,null,null,null,"외화송금 시 부가가치세 대리납부 해당여부 확인사항",null,null,null,null,null,null,null,null,null,"※ 부가가치세 대리납부 관련 법령"]
["(지급신청서 및 거래외국환은행 지정(변경)신청서 겸용)",null,null,null,null,null,null,null,null,null,null,null,null,null,null,null,null,null,null,null,null,null,null,null,null,null,null,null,null,null,null,null,null,"■ 부가가치세법 제52조 대리납부"]
[null,null,null,null,null,null,null,null,null,null,null,null,null,null,null,null,null,null,null,null,null,null,null,null,null,null,null,null,null,null,null,null,null,"① 다음 각 호의 어느 하나에 해당하는 자로부터 국내에서 용역 또는 권리(이하 이 조 및 제53조에서 \"용역등\"이라 한다)를 공급(국내에 반입하는 것으로서 제50조에 따라 관세와 함께 부가가치세를 신고·납부하여야 하는 재화의 수입에 해당하지 아니하는 경우를 포함한다. 이하 이 조 및 제53조에서 같다)받는 자(공급받은 그 용역등을 과세사업에 제공하는 경우는 제외하되, 제39조에 따라 매입세액이 공제되지 아니하는 용역등을 공급받는 경우는 포함한다)는 그 대가를 지급하는 때에 그 대가를 받은 자로부터 부가가치세를 징수하여야 한다.\n  1. 「소득세법」 제120조 또는 「법인세법」 제94조에 따른 국내사업장(이하 이 조에서 \"국내사업장\"이라 한다)이 없는 비거주자 또는 외국법인\n  2. 국내사업장이 있는 비거주자 또는 외국법인(비거주자 또는 외국법인의 국내사업장과 관련없이 용역등을 공급하는 경우로서 대통령령으로 정하는 경우만 해당한다)\n② 제1항에 따라 부가가치세를 징수한 자는 대통령령으로 정하는 바에 따라 부가가치세 대리납부신고서를 제출하고, 제48조제2항 및 제49조제2항을 준용하여 부가가치세를 납부하여야 한다.\n③ 제1항과 제2항을 적용할 때 공급받은 용역등을 과세사업과 면세사업등에 공통으로 사용하여 그 실지귀속을 구분할 수 없는 경우의 안분계산방법 등에 관하여 필요한 사항은 대통령령으로 정한다.\n④ 제10조제8항제2호 본문에 따른 사업의 양도에 따라 그 사업을 양수받는 자는 그 대가를 지급하는 때에 같은 호 본문에도 불구하고 그 대가를 받은 자로부터 부가가치세를 징수하여 그 대가를 지급하는 날이 속하는 달의 말일까지 제49조제2항을 준용하여 대통령령으로 정하는 바에 따라 사업장 관할 세무서장에게 납부할 수 있다.  <신설 2014.1.1.>"]
[null,null,null,null,null,null,null,null,null,null,null,null,"실명확인",null,null,null,"팀 원","팀 장","영업점장",null,null,null,"1. 과제정보"]
[null,null,null,null,null,null,null,null,null,null,null,null,"  ",null,null,null,null,null,null,null,null,null,"과제번호",null,null,null,null,"연구책임자"]
[null,null,null,null,null,null,null,null,null,null,null,null,null,null,null,null,null,null,null,null,null,null,"국가",null,null,null,null,"받는사람(수취인)"]
["농협은행 주식회사 앞",null,null,null,null,null,null,null,null,null,null,null,null,null,null,null,null,null,null,null,null,null,"내역(구입품목등)",null,null,null,null,"송금액"]
["보내시는 분 (Applicant)"]
["성명(업체명) (name)",null,"한글(Korean)","서울대학교산학협력단",null,null,null,null,null,null,null,"영문(English)",null,null,null,null,"SNU R&DB FOUNDATION  "]
["실명번호 (ID No.)",null,"주민등록번호","  ","  ","  ",null,"  ",null,"-","  ","여권번호",null,null,null,null,"해외동포, 외국인은 여권번호를 기재해주세요"]
[null,null,null,null,null,null,null,null,null,null,null,"(Passport No.)",null,null,null,null,null,null,null,null,null,null,"2. 확인사항"]
[null,null,"사업자번호","119-82-03684",null,null,null,null,null,null,null,null,null,null,null,null,null,null,null,null,null,null,"기준",null,null,null,null,null,null,null,"확인"]
["주소 (Address)",null,"                                                                                       TEL No.",null,null,null,null,null,null,null,null,null,null,null,null,null,null,null,null,null,null,null,"1. (재원) 매출부가세를 내지 않는 과제에서 지출하나요?\n   (지원금, 면세, 간접비일 경우 Yes, 과세‧과세(영세율)일 경우 No)\n   ※ 과세사업에서 지출하는 비용은 부가가치세 대리납부 대상이 아님\n   ※ 국가R&D(한국연구재단·산업부 등) 및 면세사업 과제, 간접비 재원의 경우 해당",null,null,null,null,null,null,null,"Y\nN"]
["신청 내용"]
["송금방법 (Remittance Type)",null,"해외송금     전신송금(T/T)      송금수표(D/D)        기타(                    )             ",null,null,null,null,null,null,null,null,null,null,null,null,null,"국내송금      실시간송금      KEB송금"]
["송금액 (Amount)",null,"통화 (Currency)                               금액 (Amount)                                 ( □ 현지통화 :                 )"]
["지급사유 (Reason for Payment)",null,null,null,null,null,null,null,"중계은행수수료 부담(Charges)",null,null,null,null,null,null,null,"     수취인(Beneficiary)      신청인(Applicant) "]
["받으시는 분 (Beneficiary)",null,null,null,null,null,null,null,null,null,null,null,null,null,null,null,null,null,null,null,null,null,"2. (거래상대방) 송금대상은 한국사업장이 없는 해외법인 또는 사업자입니까?\n   ※ 한국사업장이 별도로 있는 해외법인 또는 거주자는 대리납부 대상이 아님",null,null,null,null,null,null,null,"Y\nN"]
["성명(업체명) (name)",null,"  ",null,null,null,null,null,null,null,null,"수취국가 (Country)",null,null,null,null,"  ",null,null,null,null,null,null,null,null,null,null,null,null,null,null,null,null,"■ 부가가치세 집행기준 34-85-1 대리납부"]
["주소 (Address)",null,"  ",null,null,null,null,null,null,null,null,null,null,null,null,null,null,null,null,null,null,null,null,null,null,null,null,null,null,null,null,null,null,"대리납부란 국내에 사업장이 없는 비거주자 또는 외국법인과 국내사업장이 있는 비거주자 또는 외국법인으로부터 용역(국내사업장과 관련 없는 용역을 제공하는 경우에 한함)을 공급받는 경우 해당 용역을 공급받은 자가 그 대가를 지급하는 시점에 국외의 공급자를 대리하여 부가가치세를 징수․납부하는 것을 말한다."]
["연락처 (Contact info)",null,"TEL No. :                                                                    E-mail : ",null,null,null,null,null,null,null,null,null,null,null,null,null,null,null,null,null,null,null,"3. (용역) 공급받는 용역은 부가가치세 납부 대상 용역입니까?\n   ※ 개인에게 지급하는 인적용역소득(논문교정료 등)은 대리납부 대상이 아님\n   ※ 업체에게 지급하는 분석료, 사용료, 사이트이용료, 장비사용료, 교정료 등은 대상임",null,null,null,null,null,null,null,"Y\nN"]
["수취은행 정보",null,"은행명 (Bank Name)"]
["(Beneficiary's Bank)",null,"지점명 및 주소"]
[null,null,"(Branch name, Address)"]
[null,null,"SWIFT BIC",null,null,null,"  ",null,null,null,null,null,null,"  ","  ","  ","ABA NO. ",null,null,null,null,null,"4. (수입여부) 관세청을 경유하지 않는 재화입니까?\n   (관세청을 경유하지 않을 경우 Yes, 관세청 경유 시 No)\n   ※ 수입 시 관세와 함께 부가가치세를 신고‧납부하는 경우 대리납부 대상이 아님",null,null,null,null,null,null,null,"Y\nN",null,null,"■ 부가가치세 집행기준 34-85-3"]
[null,null,null,null,null,null,null,null,null,null,null,null,null,null,null,null,"Sort Code 등",null,null,null,null,null,null,null,null,null,null,null,null,null,null,null,null,"① 용역의 제공자가 국내사업장이 없는 비거주자 또는 외국법인이거나, 국내사업장이 있더 라도 국내사업장과 관련 없는 비거주자 또는 외국법인이어야 한다.\n② 해당 용역이 부가가치세가 과세되는 용역이어야 한다.\n③ 해당 용역이 국내에서 사용 또는 소비되어야 한다.\n④ 제공받은 용역을 부가가치세가 과세되지 아니하는 사업에 사용 또는 소비되어야 한다."]
[null,null,"계좌번호 (A/C No.)"]
["기타사항 (필요시에만 기재)"]
["중계은행 (Intermediary Bank)",null,"  ",null,null,null,null,null,"수취인 ID 또는 기타",null,null,null,null,null,null,null,"  ",null,null,null,null,null,"5. (위탁연구개발비) 추후 위탁기관에서 산학협력단에 실비 정산 및 집행내역을 \n   보고할 필요가 없습니까? \n   (정산‧보고 의무가 없을 경우 Yes, 정산과제의 경우 No)\n   ※ 실비정산 및 집행내역을 보고하여야 하는 지원금‧면세위탁과제의 경우 \n      대리납부 대상이 아님",null,null,null,null,null,null,null,"Y\nN"]
["거래외국환은행 지정항목",null,"      01(거주자 지급증빙 미제출)       02(해외유학생(체재자) 경비)        08(외국인 급여 등) "]
[null,null,"      63(재외동포 국내재산반출)        75(해외이주비)                       기타 지정항목(                        )"]
["신고(수리)번호",null,"  ",null,null,null,null,null,"신고금액",null,null,null,"  ",null,null,null,null,"신고일자","  ",null,null,null,null,null,null,null,null,null,null,null,null,null,null,"■ 부가가치세 집행기준 34-85-4 대리납부 대상"]
["수입대금 송금 시 기재",null,"품목(H.S. Code)",null,null,"L/C 또는 계약서No.",null,null,null,null,null,null,"수입신고번호",null,null,null,null,"가격조건","수입용도",null,null,null,null,null,null,null,null,null,null,null,null,null,null,"① 비거주자 또는 외국법인의 재화․시설물 또는 권리를 우리나라에서 사용하고 그 대가를 지급하는 자는 공급받은 해당 용역을 과세사업에 사용하는 경우를 제외하고는 대리납부를 하여야 하나, 부가가치세가 면제되는 용역을 제공받은 경우에는 대리납부의무가 없다.\n② 재화․시설물 또는 권리란 부동산, 부동산상의 권리, 광업권, 조광권, 채석권, 선박, 항공기, 자동차, 건설기계, 기계, 설비, 장치, 운반구, 공구, 학술 또는 예술상의 저작물(영화필름을 포함)의 저작권, 특허권, 상표권, 의장, 모형, 도면, 비밀의 공식 또는 공정, 라디오․텔레비전․방송용 필름 및 테이프, 산업상․상업상 또는 과학상의 지식․경험 또는 숙련에 관한 정보, 우리나라 법에 따른 면허․허가 또는 이와 유사한 처분에 의하여 설정된 권리, 기타 이와 유사한 재화․시설물 또는 권리를 말한다."]
[null,null,null,null,null,null,null,null,null,null,null,null,"  ",null,null,null,null,"  ","  ",null,null,"        "]
["E-mail 서비스","☑ 받으시는 분의 E-mail 기재 시 제공되며, 농협은행은 이 서비스로 제공된 내용의 보안, 전송, 누설 등에 대한 책임을 지지 않습니다."]
[null,null,null,null,null,null,null,null,null,null,null,null,null,null,null,null,null,null,null,null,null,null,"위 항목 모두에 “Yes”에 체크한 경우 부가가치세 대리납부 대상에 해당되오니 대리납부 금액을 책정하여 \n지출하여 주시기 바랍니다."]
["☑ 본인은 귀행 영업점에 비치된 외환거래 기본약관을 열람하고 그 내용에 따를 것을 확약하며 위와 같이 지급 신청합니다."]
["☑ 당해 송금과 관련하여 해외은행 앞으로 위에 기재하신 정보가 제공됨에 동의합니다.",null,null,null,null,null,null,null,null,null,null,null,null,null,null,null,null,null,null,null,null,null,"※ 대리납부에 해당하는 경우 공급가액(환전수수료 등 제외)의 10%를 산학협력단 부가가치세 계좌로 함께 \n   청구하여 주시기 바랍니다."]
["□ 본 거래는 글로벌 경제제재(OFAC 등) 대상자/국가와 관련이 없으며, 경제제재 대상자/국가와 직·간접적으로 관련된 경우"]
["자금동결, 송금지연 및 반환될 수 있음을 확인합니다.",null,null,null,null,null,null,null,null,null,null,null,null,null,null,null,null,null,null,null,null,null,"※ 부가가치세 계좌: 농협은행 079-17-065704 서울대학교 산학협력단"]
["□ 본인은 귀행을 거래외국환은행으로 지정(변경)하고자 합니다.",null,null,null,null,null,null,null,null,null,null,null,null,null,null,null,null,null,null,null,null,null,null,null,null,null,null,null,null,null,null,null,null,"■ 부가가치세 집행기준 34-85-5 대리납부 대상 용역대가의 계산 방법"]
[{"$f":"TODAY()","v":"2023-02-27"},null,null,null,null,null,null,null,null,null,null,null,null,null,null,null,null,null,null,null,null,null,null,null,null,null,null,null,null,null,null,null,null,"① 대리납부의 대상이 되는 용역의 대가는 다음과 같이 계산한다.\n  1. 거래당사자간에 부가가치세액의 징수 및 부담에 대하여 별도의 계약이 있는 경우에는 해당 계약에 의한다.\n  2. 부가가치세액의 징수 및 부담에 대하여 별도의 계약이 없이 용역대가의 전액을 지급하는 때에는 해당 용역대가에 부가가치세가 제외되어 있는 것으로 하여 계산한다.\n  3. 부가가치세액의 징수 및 부담에 대하여 별도의 계약이 없이 용역대가에서 부가가치세액을 공제하여 지급하는 때에는 해당 용역대가에 부가가치세가 포함되어 있는 것으로 하여 계산한다.\n② 용역의 대가를 외화로 지급하는 때에는 다음과 같이 계산한 금액을 그 대가로 한다.\n  1.원화를 외화로 매입하여 지급하는 경우에는 지급일 현재의 대고객외국환매도율에 의하여 계산한 금액\n  2.보유 중인 외화로 지급하는 경우에는 지급일 현재의 기준환율 또는 재정환율에 의하여 계산한 금액"]
["신청인(Applicant) :                                             (인 또는 서명)"]
["위 사실을 확인함                               농 협 은 행 장 (인)"]
["※ 이 신청서는 외국환통계자료로 활용하며 과세자료로 국세청에 통보될 수 있습니다."]
["※ 본 신청서는 대외지급수단의 휴대반출에 따른 근거서류로 활용할 수 없습니다."]

{"sheet":"D","index":15,"n_rows":18,"n_cols":11,"rows_kept":18,"cut":false,"hidden":false,"merged":[[4,1,4,2],[4,3,4,5],[4,6,4,7],[4,8,4,10],[1,1,1,10],[3,1,3,2],[3,3,3,5],[3,6,3,7],[3,8,3,10],[6,2,6,3],[6,4,6,5],[6,8,6,10],[7,2,7,3],[7,4,7,5],[7,8,7,10],[8,2,8,3],[8,4,8,5],[8,8,8,10],[15,8,15,9],[17,1,17,10],[9,2,9,3],[9,4,9,5],[9,8,9,10],[10,1,10,4],[11,1,11,10],[13,1,13,10]]}
[]
[null,"확 인 서"]
[]
[null,"SRnD 과제번호",null,null,null,null,"연구책임자"]
[null,"연구과제명",null,null,null,null,"지원기관"]
[]
[null,"연번","사용세목",null,"사용내역",null,"사용일자","사용금액(원)","사유"]
[null,1,"연구활동비",null,"연구비(법인)카드 미사용",null,200301,100000,"연구비카드 발급 이전 부득이한 회의 개최"]
[null,2]
[null,3]
[]
[null,"해당 사용내역에 대해 위와 같이 소명하며, 추후 문제 발생 시 해결을 위해 책임을 다하겠습니다."]
[]
[null,{"$f":"TODAY()","v":"2023-02-27"}]
[]
[null,null,null,null,null,null,null,"연구책임자",null,null,"(인)"]
[]
[null,"서울대학교 산학협력단"]

{"sheet":"E","index":16,"n_rows":27,"n_cols":6,"rows_kept":27,"cut":false,"hidden":false,"merged":[[1,1,2,6],[4,1,4,6],[5,1,5,6],[25,1,25,6],[26,1,31,6]]}
[]
[null,"간접비 계산식"]
[]
[]
[null,"◎ 총 연구비에 간접비가 포함된 경우 편성해야 하는 간접비는 얼마일까?"]
[null,"흰색 빈칸만 수정하여 사용하십시오."]
[]
[]
[null,null,null,"사업 구분 선택","국가연구개발사업 간접비"]
[]
[null,null,"1. 총 연구비","총 연구비는 얼마입니까?",100000000,"원"]
[]
[null,null,"2. 위탁연구비(부가세)","연구비 내에 위탁연구비(부가세)가 있습니까?",0,"원 (없으면 0원 )"]
[]
[null,null,"3. 간접비 계상기준","간접비 산정비율의 기준은?",2,"의"]
[]
[null,null,null,null,28,"%"]
[]
[null,null,"4. 결과값","간접경비는",{"$f":"IF(E15=1,ROUNDDOWN((E11-E13)*E17*0.01,-3),ROUNDDOWN((E11-E13)*E17*0.01/(1+E17*0.01),-3))","v":21875000},"원이며,"]
[]
[null,null,null,"인건비와 직접경비의 합은",{"$f":"E11-E19","v":78125000},"원입니다."]
[]
[null,null,null,"간접경비는 (인건비+직접경비)의",{"$f":"E19/E21","v":0.28000000000000003},"입니다."]
[]
[]
[null,"※ 간접비 계상기준의 법적 근거"]
[null," ◇ 국가연구개발사업 연구개발비 사용 기준 제114조제2항, [별표6]\n ① 서울대학교 산학협력단 간접비 : 인건비 포함 직접비(위탁연구비, 부가세 제외)의 28% (2022.1.~다음 간접비 고시율 시행 전까지)\n     ※ 단, 간접비 분리지급 과제의 경우 간접비는 30.45% 적용\n ◇ 국가를 당사자로 하는 계약에 관한 법률 시행규칙 제8조\n ② 용역사업 일반관리비 : 인건비와 직접비(부가세 제외) 합의 6%\n ③ 민간사업 간접비 : 총연구비(위탁연구개발비, 부가세 제외)의 15%"]

{"sheet":"F","index":17,"n_rows":35,"n_cols":12,"rows_kept":35,"cut":false,"hidden":false,"merged":[[0,1,0,11],[1,1,2,11],[3,1,3,3],[3,4,7,4],[3,5,3,11],[4,2,4,3],[4,5,4,6],[4,7,4,11],[5,2,5,3],[5,5,5,6],[5,7,5,8],[5,10,5,11],[6,2,6,3],[6,5,6,6],[6,7,6,11],[8,1,10,7],[8,8,10,9],[8,10,10,11],[7,2,7,3],[7,5,7,6],[7,7,7,8],[7,10,7,11],[11,2,11,3],[11,6,11,8],[11,9,11,10],[12,2,12,3],[12,6,12,8],[12,9,12,10],[13,2,13,3],[13,6,13,8],[13,9,13,10],[14,2,14,3],[14,6,14,8],[14,9,14,10],[15,2,15,3],[15,6,15,8],[15,9,15,10],[16,2,16,3],[16,6,16,8],[16,9,16,10],[17,2,17,3],[17,6,17,8],[17,9,17,10],[18,2,18,3],[18,6,18,8],[18,9,18,10],[19,2,19,3],[19,6,19,8],[19,9,19,10],[20,2,20,3],[20,6,20,8],[20,9,20,10],[21,2,21,3],[21,6,21,8],[21,9,21,10],[22,2,22,3],[22,6,22,8],[22,9,22,10],[23,2,23,3],[23,6,23,8],[23,9,23,10],[24,2,24,3],[24,6,24,8],[24,9,24,10],[25,2,25,3],[25,6,25,8],[25,9,25,10],[33,6,34,7],[26,1,27,11],[28,2,28,3],[28,5,28,7],[28,9,28,11],[29,1,30,11],[31,3,34,4],[31,5,32,5],[31,6,32,7],[31,8,34,9],[33,5,34,5]]}
[null,"거래명세서"]
[]
[]
[null,"서울대학교 산학협력단",null,null,null,"공급자"]
[null,"사업자번호","119-82-03684",null,null,"사업자번호"]
[null,"상호(법인명)","서울대학교 산학협력단",null,null,"상호(법인명)",null,null,null,"대표자","(인)"]
[null,"대표자","김재영",null,null,"주소"]
[null,"주소","서울특별시 관악구 관악로 1",null,null,"업태",null,null,null,"종목"]
[null,null,null,null,null,null,null,null,"거래일자:",null,"20  .   .   ."]
[]
["start"]
[null,"제품번호\n(해당시)","제품명",null,"수량","단위","단가",null,null,"공급가액",null,"세액"]
[null,null,null,null,null,null,null,null,null,{"$f":"IF(E13*G13>0, (E13*G13), \"\")","v":""},null,{"$f":"IF((E13*G13)>0, TRUNC((J13*10%),1), \"\")","v":""}]
[{"$f":"IF(ISNUMBER(G13),(IF(COUNTA($G$13:$I$26)=1,\"END\",\"\")),\"\")","v":""},null,null,null,null,null,null,null,null,{"$f":"IF(E14*G14>0, (E14*G14), \"\")","v":""},null,{"$f":"IF((E14*G14)>0, TRUNC((J14*10%),1), \"\")","v":""}]
[{"$f":"IF(ISNUMBER(G14),(IF(COUNTA($G$13:$I$26)=2,\"END\",\"\")),\"\")","v":""},null,null,null,null,null,null,null,null,"",null,""]
[{"$f":"IF(ISNUMBER(G15),(IF(COUNTA($G$13:$I$26)=3,\"END\",\"\")),\"\")","v":""},null,null,null,null,null,null,null,null,"",null,""]
[{"$f":"IF(ISNUMBER(G16),(IF(COUNTA($G$13:$I$26)=4,\"END\",\"\")),\"\")","v":""},null,null,null,null,null,null,null,null,"",null,""]
[{"$f":"IF(ISNUMBER(G17),(IF(COUNTA($G$13:$I$26)=5,\"END\",\"\")),\"\")","v":""},null,null,null,null,null,null,null,null,"",null,""]
[{"$f":"IF(ISNUMBER(G18),(IF(COUNTA($G$13:$I$26)=6,\"END\",\"\")),\"\")","v":""},null,null,null,null,null,null,null,null,"",null,""]
[{"$f":"IF(ISNUMBER(G19),(IF(COUNTA($G$13:$I$26)=7,\"END\",\"\")),\"\")","v":""},null,null,null,null,null,null,null,null,"",null,""]
[{"$f":"IF(ISNUMBER(G20),(IF(COUNTA($G$13:$I$26)=8,\"END\",\"\")),\"\")","v":""},null,null,null,null,null,null,null,null,"",null,""]
[{"$f":"IF(ISNUMBER(G21),(IF(COUNTA($G$13:$I$26)=9,\"END\",\"\")),\"\")","v":""},null,null,null,null,null,null,null,null,"",null,""]
[{"$f":"IF(ISNUMBER(G22),(IF(COUNTA($G$13:$I$26)=10,\"END\",\"\")),\"\")","v":""},null,null,null,null,null,null,null,null,"",null,""]
[{"$f":"IF(ISNUMBER(G23),(IF(COUNTA($G$13:$I$26)=11,\"END\",\"\")),\"\")","v":""},null,null,null,null,null,null,null,null,"",null,""]
[{"$f":"IF(ISNUMBER(G24),(IF(COUNTA($G$13:$I$26)=12,\"END\",\"\")),\"\")","v":""},null,null,null,null,null,null,null,null,"",null,""]
[{"$f":"IF(ISNUMBER(G25),(IF(COUNTA($G$13:$I$26)=13,\"END\",\"\")),\"\")","v":""},null,null,null,null,null,null,null,null,"",null,""]
[{"$f":"IF(ISNUMBER(G26),(IF(COUNTA($G$13:$I$26)=1,\"END\",\"\")),\"\")","v":""}]
[]
[null,"공급가액",{"$f":"SUM(J13:J26)","v":0},null,"세액",{"$f":"SUM(L13:L26)","v":0},null,null,"합계",{"$f":"SUM(C29,F29)","v":0}]
[]
[]
[null,"계좌정보",null,null,null,"소속",null,null,"검수\n확인자"]
[null,"입금처"]
[null,"담당자",null,null,null,"검수일"]
[null,"담당자 \n연락처"]

{"sheet":"Sheet1","index":18,"n_rows":267,"n_cols":5,"rows_kept":267,"cut":false,"hidden":true,"merged":[]}
["국가","은행","직급","거주구분","출장형태"]
["한국","HMC투자증권","교수(외부)","거주자","학회 단순참석 및 자료수집"]
["미국","HSBC","부교수(외부)","비거주자","학회참석 및 발표"]
["중국","NH농협은행","조교수(외부)",null,"회의 및 워크샵(세미나) 참석"]
["일본","강원은행","연구원(외부)",null,"교육출장"]
["솔로몬","경기은행","박사(외부)",null,"기관방문(공동연구기관, 위탁기관 등)"]
["체코","경남은행","석사(외부)",null,"논문발표"]
["인도","광주은행","학사(외부)",null,"회의참석"]
["조지아","교보증권",null,null,"전시회 단순참관 및 자료수집"]
["캐나다","국민은행",null,null,"전시회 참여(기술전시 등)"]
["스웨덴","기업은행",null,null,"기타"]
["캄보디아","농협협동조합"]
["몽골","대구은행"]
["감비아","대동은행"]
["안타티카","대신증권"]
["온두라스","대우증권"]
["말리","대한투자신탁"]
["마샬군도","동남은행"]
["영령 인도양","동부증권"]
["투발루","동양증권"]
["세인트 피레 미켈론","동화은행"]
["스발비드 군도","메리츠종합금융증권"]
["파라과이 ","미래에셋증권"]
["아루바","보람은행"]
["발로","보람은행"]
["라오스","부국증권"]
["태국","부산은행"]
["마카오","산림조합"]
["가봉","산업은행"]
["말라위","삼성증권"]
["불령 가이아나","상업은행"]
["세이쉘","새마을금고"]
["폴란드","서울은행"]
["쿠웨이트","솔로몬투자증권"]
["아이슬란드","수출입은행"]
["자이레","수협중앙회"]
["레바논","신용협동조합"]
["레소토","신한금융투자"]
["북마리아나 군도","신한은행"]
["코트디부아르 ","씨티은행(한미)"]
["토켈라우 ","에스케이증권"]
["포르투갈","엔에이치투자증권"]
["벨기에","엘아이지투자증권"]
["바베이도스","외환은행"]
["안도라","우리은행"]
["유고슬라비아","우리투자증권"]
["벨라루스","우체국"]
["쿡 제도","유진투자증권"]
["남조지아 & 남샌드위치 군도","이트레이드증권"]
["아르메니아","장기신용은행"]
["요르단","전북은행"]
["이집트","제주은행"]
["인도네시아","체이스맨하탄은행"]
["카메룬","축협중앙회"]
["코모로","충북은행"]
["콜롬비아","충청은행"]
["쿠바","카카오뱅크"]
["트리니다드토바고","케이뱅크"]
["파푸아뉴기니","키움증권"]
["프랑스","평화은행"]
["호주","하나대투증권"]
["과델로프","하나은행"]
["뉴 칼레도니아","하이투자증권"]
["바티칸 시티","한국스탠다드차타드은행"]
["보스니아헤르체고비나","한국은행"]
["세인트 키츠 네비스","한국투자신탁"]
["싱가포르","한국투자증권"]
["아랍에미리트 ","한일은행"]
["안굴리아","한화증권"]
["적도 기니","현대증권"]
["소말리아"]
["룩셈브르크"]
["홍콩"]
["이란"]
["이스라엘"]
["크메르"]
["몰디브"]
["오만"]
["필리핀"]
["사우디아라비아"]
["스리랑카"]
["시리아"]
["터키"]
["예멘"]
["미크로네시아"]
["아르헨티나"]
["바하마"]
["브라질"]
["칠레"]
["코스타리카"]
["엘살바도르"]
["과테말라"]
["아이티"]
["멕시코"]
["페루"]
["베네수엘라"]
["핀란드"]
["그리스"]
["네덜란드"]
["산마리노"]
["베나투"]
["베냉"]
["솔로몬제도"]
["키리바시"]
["대만"]
["짐바브웨"]
["파로에 군도"]
["불가리아"]
["르완다"]
["시에라리온"]
["수단"]
["모나코"]
["토고"]
["우간다"]
["가이네아"]
["모리타니아"]
["잠비아"]
["미얀마(버마)"]
["부르키나파소"]
["슬로베니아"]
["우즈베키스탄"]
["차오"]
["콩고"]
["에스토니아"]
["유럽연합"]
["기니비사우"]
["나우루"]
["도미니카 공화국"]
["리히텐슈타인"]
["마이너 아우틀링 합중국 군도"]
["보빗군도"]
["불령 남부지역"]
["서사하라"]
["세인트 빈센트 그레나딘"]
["세인트 헬레나"]
["영령 버진군도"]
["영령 캐이맨 군도"]
["코스 군도"]
["투르크 & 카이코스 군도"]
["팔레스타인"]
["도미니카"]
["우루과이"]
["독일"]
["키프로스"]
["이라크"]
["말레이지아"]
["네팔"]
["탄자니아"]
["모잠비크"]
["마다가스카르"]
["스페인"]
["동독 "]
["파키스탄"]
["카타르"]
["베트남"]
["남예멘"]
["볼리비아"]
["에콰도르 "]
["그레나다"]
["자메이카"]
["파나마"]
["수리남"]
["오스트리아"]
["영국"]
["이탈리아"]
["몰타"]
["노르웨이"]
["스위스"]
["알바니아"]
["소련"]
["피지"]
["칼레도니아"]
["타이티"]
["알제리"]
["다오메이"]
["에티오피아 "]
["가나"]
["케냐"]
["리비아"]
["모리셔스"]
["니제르"]
["기니"]
["바레인"]
["북한"]
["가이아나"]
["니카라과"]
["푸에르토리코"]
["덴마크"]
["아일랜드"]
["헝가리"]
["오트볼타"]
["부룬디"]
["버진군도"]
["쎄크레스"]
["아제르바잔"]
["지부티"]
["투르크메니스탄"]
["키르기스스탄 "]
["그린란드"]
["피트카이른"]
["아프가니스탄"]
["방글라데시"]
["부탄"]
["브루나이"]
["루마니아"]
["세르비아"]
["코소보"]
["사모아"]
["괌"]
["헤브리테스"]
["뉴질랜드"]
["서사모아"]
["보츠와나"]
["중앙아프리카공화국"]
["차드"]
["아이보리코스트"]
["라이베리아"]
["모로코"]
["나이지리아"]
["로디지아"]
["세네갈"]
["남아프리카공화국"]
["서남아프리카"]
["스와질랜드"]
["튀니지"]
["콩고민주공화국"]
["앙골라"]
["말비나소"]
["몰도바"]
["버뮤다"]
["벨리즈"]
["벨라루시아"]
["러시아"]
["시칠리스"]
["우크라이나"]
["지브랄타"]
["포클랜드 군도"]
["카페버디"]
["타지키스탄"]
["통가"]
["파카리안"]
["카자흐스탄"]
["그루지아"]
["나미비아"]
["네덜란드령앤틸리스제도"]
["노폴크 아일랜드"]
["니우에"]
["라트비아"]
["리투아니아"]
["마케도니아"]
["마티니크"]
["메요트"]
["몬트세라트"]
["불령 리유니온,코모도 제도"]
["불령 폴리네시아"]
["상투메프린시페 "]
["세인트 루시아"]
["슬로바키아"]
["안티가 바부다"]
["에리트리아"]
["왈라스 & 퓨투나 군도"]
["크로아티아"]
["크리스마스 아일랜드"]
["동티모르"]
["팔라우"]
["허드 앤 맥도날드 군도"]
["몬테네그로"]